{"text_format":"1","workbook":"xlsx","n_sheets":2,"sheets":["tcd","Data"],"not_rendered":{"charts":0,"images":0,"macros":1,"external_links":0,"defined_names":0,"comments":0,"pivot_tables":1},"unopened":[],"bounds":{"document_bytes":16777216,"sheet_cells":100000,"rows_first":2000,"rows_last":500,"rows_between":2000,"halvings":0,"cell_chars":16384,"cell_head_chars":4096},"cells_cut":0,"cells_raw":0,"read":"whole","date_system":"1900"}

{"sheet":"tcd","index":0,"n_rows":194,"n_cols":2,"rows_kept":194,"cut":false,"hidden":false,"merged":[]}
["Étiquettes de lignes","Nombre de IntituléCode2"]
["Commerce de gros",59]
["Commerce de gros de produits agricoles bruts et d’animaux vivants",4]
["Commerce de gros de produits alimentaires, de boissons et de produits à base de tabac",10]
["Intermédiaires du commerce de gros",11]
["Commerce de gros de biens domestiques",10]
["Commerce de gros d’équipements de l’information et de la communication",1]
["Commerce de gros d’autres machines, équipements et fournitures",7]
["Commerce de gros de véhicules automobiles, de motocycles et de leurs pièces et accessoires",4]
["Autre commerce de gros spécialisé",11]
["Commerce de gros non spécialisé",1]
["Industries alimentaires",32]
["Fabrication d’aliments pour animaux",2]
["Fabrication d’autres produits alimentaires",7]
["Fabrication d’huiles et graisses végétales et animales",2]
["Fabrication de produits de boulangerie-pâtisserie et de pâtes alimentaires",5]
["Fabrication de produits laitiers et de glace alimentaire",4]
["Transformation et conservation de fruits et légumes",4]
["Transformation et conservation de la viande et préparation de produits à base de viande",4]
["Transformation et conservation de poisson, de crustacés et de mollusques",1]
["Travail des grains ; fabrication de produits amylacés",3]
["Culture et production animale, chasse et services annexes",32]
["Activités de soutien à l’agriculture et traitement primaire des récoltes",3]
["Chasse, piégeage et activités de service connexes",1]
["Culture et élevage associés",1]
["Cultures non permanentes",7]
["Cultures permanentes",9]
["Production animale",10]
["Reproduction de plantes",1]
["Travaux de construction spécialisés",28]
["Activités de service d’intermédiation pour des travaux de construction spécialisés",1]
["Autres travaux de construction spécialisés",3]
["Démolition et préparation des sites",4]
["Travaux d’installation électrique, plomberie et autres travaux d’installation",6]
["Travaux de construction spécialisés dans la construction de bâtiments",6]
["Travaux de construction spécialisés en génie civil",1]
["Travaux de finition",7]
["Commerce de détail",27]
["Commerce de détail non spécialisé",7]
["Commerce de détail de produits alimentaires, de boissons et de tabac",8]
["Commerce de détail de carburants",1]
["Commerce de détail d’équipements de l’information et de la communication",1]
["Commerce de détail d’autres équipements du foyer",5]
["Commerce de détail de biens culturels et de loisirs",5]
["Fabrication d’autres produits minéraux non métalliques",24]
["Fabrication d’autres produits en céramique et en porcelaine",5]
["Fabrication d’ouvrages en béton, en ciment ou en plâtre",6]
["Fabrication de ciment, chaux et plâtre",2]
["Fabrication de matériaux de construction en terre cuite",2]
["Fabrication de produits abrasifs et de produits minéraux non métalliques n.c.a.",2]
["Fabrication de produits réfractaires",1]
["Fabrication de verre et d’articles en verre",5]
["Taille, façonnage et finissage de pierres",1]
["Fabrication de machines et équipements n.c.a.",23]
["Fabrication d’autres machines d’usage général",6]
["Fabrication d’autres machines d’usage spécifique",8]
["Fabrication de machines agricoles et forestières",1]
["Fabrication de machines d’usage général",6]
["Fabrication de machines de formage des métaux et de machines-outils",2]
["Fabrication de produits métalliques, à l’exception des machines et des équipements",17]
["Fabrication d’armes et de munitions",1]
["Fabrication d’autres ouvrages en métaux",5]
["Fabrication d’éléments en métal pour la construction",2]
["Fabrication de coutellerie, d’outillage et de quincaillerie",3]
["Fabrication de réservoirs, citernes et conteneurs métalliques",2]
["Forgeage et façonnage de métal ; métallurgie des poudres",1]
["Traitement et revêtement des métaux ; usinage",3]
["Métallurgie",16]
["Fabrication d’autres produits de première transformation de l’acier",4]
["Fabrication de tubes, tuyaux, profilés creux et accessoires correspondants en acier",1]
["Fonderie",4]
["Production de métaux précieux et d’autres métaux non ferreux",6]
["Sidérurgie",1]
["Industrie chimique",14]
["Fabrication d’autres produits chimiques",2]
["Fabrication de fibres artificielles ou synthétiques",1]
["Fabrication de peintures, vernis, encres et mastics",1]
["Fabrication de pesticides, de désinfectants et d’autres produits agrochimiques",1]
["Fabrication de produits chimiques de base, de produits azotés et d’engrais, de matières plastiques de base et de caoutchouc synthétique",7]
["Fabrication de savons et de produits d’entretien",2]
["Production et distribution d’électricité, de gaz, de vapeur et d’air conditionné",13]
["Activités des courtiers et agents pour l’électricité et le gaz naturel",1]
["Production de gaz et distribution de combustibles gazeux par conduites",4]
["Production et distribution de vapeur et d’air conditionné",1]
["Production, transport et distribution d’électricité",7]
["Réparation, entretien et installation de machines et d’équipements",11]
["Installation de machines et d’équipements industriels",1]
["Réparation et entretien d’ouvrages en métaux, de machines et d’équipements",10]
["Travail du bois et fabrication d’articles en bois et en liège, à l’exception des meubles ; fabrication d’articles en vannerie et sparterie",10]
["Fabrication d’articles en bois, liège, vannerie et sparterie",8]
["Sciage et rabotage du bois ; façonnage et finition du bois",2]
["Fabrication d’autres matériels de transport",10]
["Construction aéronautique et spatiale",2]
["Construction de locomotives et d’autre matériel ferroviaire roulant",1]
["Construction de véhicules militaires de combat",1]
["Construction navale",3]
["Fabrication de matériels de transport n.c.a",3]
["Fabrication d’équipements électriques",10]
["Fabrication d’appareils d’éclairage",1]
["Fabrication d’appareils ménagers",2]
["Fabrication d’autres matériels électriques",1]
["Fabrication de fils et câbles et de matériel d’installation électrique",3]
["Fabrication de moteurs, génératrices et transformateurs électriques et de matériel de distribution et de commande électrique",2]
["Fabrication de piles et d’accumulateurs électriques",1]
["Fabrication de textiles",10]
["Ennoblissement textile",1]
["Fabrication d’autres textiles",7]
["Préparation de fibres textiles et filature",1]
["Tissage",1]
["Fabrication de boissons",9]
["Fabrication de boissons",9]
["Autres industries manufacturières",9]
["Activités manufacturières n.c.a.",2]
["Fabrication d’articles de joaillerie, bijouterie et articles similaires",3]
["Fabrication d’articles de sport",1]
["Fabrication d’instruments de musique",1]
["Fabrication d’instruments et de fournitures à usage médical et dentaire",1]
["Fabrication de jeux et jouets",1]
["Collecte, valorisation et élimination des déchets",9]
["Activités de dépollution et autres activités de service de gestion des déchets",1]
["Collecte des déchets",2]
["Élimination des déchets sans valorisation",3]
["Valorisation des déchets",3]
["Fabrication de produits informatiques, électroniques et optiques",9]
["Fabrication d’équipements d’irradiation médicale, d’équipements électromédicaux et électrothérapeutiques",1]
["Fabrication d’instruments de mesure et d’essai ; horlogerie",2]
["Fabrication d’ordinateurs et d’équipements périphériques",2]
["Fabrication de composants et cartes électroniques",2]
["Fabrication de matériels optique et photographique et de supports magnétiques et optiques",1]
["Fabrication de produits électroniques grand public",1]
["Génie civil",8]
["Construction d’autres ouvrages de génie civil",2]
["Construction de réseaux et de lignes",2]
["Construction de routes et de voies ferrées",4]
["Fabrication de produits en caoutchouc et en plastique",8]
["Fabrication de produits en caoutchouc",2]
["Fabrication de produits en plastique",6]
["Industrie du papier et du carton",7]
["Fabrication d’articles en papier ou en carton",5]
["Fabrication de pâte à papier, de papier et de carton",2]
["Industrie de l’habillement",6]
["Fabrication d’articles à mailles",1]
["Fabrication d’autres articles d’habillement et accessoires",5]
["Autres industries extractives",6]
["Activités extractives n.c.a.",4]
["Extraction de pierres, de sables et d’argiles",2]
["Imprimerie et reproduction d’enregistrements",5]
["Imprimerie et services annexes",4]
["Reproduction d’enregistrements",1]
["Pêche et aquaculture",5]
["Activités de soutien à la pêche et l’aquaculture",1]
["Aquaculture",2]
["Pêche",2]
["Sylviculture et exploitation forestière",4]
["Activités de soutien à l’exploitation forestière",1]
["Exploitation forestière",1]
["Récolte de produits forestiers non ligneux poussant à l’état sauvage",1]
["Sylviculture et autres activités forestières",1]
["Industrie automobile",4]
["Construction de véhicules automobiles",1]
["Fabrication d’équipements automobiles",2]
["Fabrication de carrosseries de véhicules automobiles ; fabrication de remorques et de semi-remorques",1]
["Fabrication de cuir, d’articles en cuir et de produits similaires dans d’autres matières",3]
["Fabrication de chaussures",1]
["Tannage, apprêt et teinture des cuirs et des fourrures ; fabrication de bagages, de maroquinerie, sellerie et bourrellerie",2]
["Extraction de minerais métalliques",3]
["Extraction de minerais de fer",1]
["Extraction de minerais de métaux non ferreux",2]
["Fabrication de meubles",3]
["Fabrication de meubles",3]
["Construction de bâtiments résidentiels et non résidentiels",2]
["Construction de bâtiments résidentiels et non résidentiels",2]
["Industrie pharmaceutique",2]
["Fabrication de préparations pharmaceutiques",1]
["Fabrication de produits pharmaceutiques de base",1]
["Extraction d’hydrocarbures",2]
["Extraction de gaz naturel",1]
["Extraction de pétrole brut",1]
["Cokéfaction et raffinage",2]
["Cokéfaction",1]
["Raffinage du pétrole et fabrication de produits à base de combustibles fossiles",1]
["Extraction de houille et de lignite",2]
["Extraction de houille",1]
["Extraction de lignite",1]
["Activités de soutien aux industries extractives",2]
["Activités de soutien à l’extraction d’hydrocarbures",1]
["Activités de soutien aux autres industries extractives",1]
["Collecte et traitement des eaux usées",1]
["Collecte et traitement des eaux usées",1]
["Captage, traitement et distribution d’eau",1]
["Captage, traitement et distribution d’eau",1]
["Fabrication de produits à base de tabac",1]
["Fabrication de produits à base de tabac",1]
["Total général",449]

{"sheet":"Data","index":1,"n_rows":450,"n_cols":8,"rows_kept":450,"cut":false,"hidden":false,"merged":[]}
["Section","IntituléSection","Code1","IntituléCode1","Code2","IntituléCode2","Code3UID","IntituléCode3"]
["A","AGRICULTURE, SYLVICULTURE ET PÊCHE",{"$f":"LEFT(Tableau1[[#This Row],[Code2]],2)","v":"01"},"Culture et production animale, chasse et services annexes",{"$f":"LEFT(Tableau1[[#This Row],[Code3UID]],4)","v":"01.1"},"Cultures non permanentes","01.11Y","Culture de céréales, à l’exception du riz, de légumineuses et de graines oléagineuses"]
["A","AGRICULTURE, SYLVICULTURE ET PÊCHE",{"$f":"LEFT(Tableau1[[#This Row],[Code2]],2)","v":"01"},"Culture et production animale, chasse et services annexes",{"$f":"LEFT(Tableau1[[#This Row],[Code3UID]],4)","v":"01.1"},"Cultures non permanentes","01.12Y","Culture du riz"]
["A","AGRICULTURE, SYLVICULTURE ET PÊCHE",{"$f":"LEFT(Tableau1[[#This Row],[Code2]],2)","v":"01"},"Culture et production animale, chasse et services annexes",{"$f":"LEFT(Tableau1[[#This Row],[Code3UID]],4)","v":"01.1"},"Cultures non permanentes","01.13Y","Culture de légumes, de melons, de racines et de tubercules"]
["A","AGRICULTURE, SYLVICULTURE ET PÊCHE",{"$f":"LEFT(Tableau1[[#This Row],[Code2]],2)","v":"01"},"Culture et production animale, chasse et services annexes",{"$f":"LEFT(Tableau1[[#This Row],[Code3UID]],4)","v":"01.1"},"Cultures non permanentes","01.14Y","Culture de la canne à sucre"]
["A","AGRICULTURE, SYLVICULTURE ET PÊCHE",{"$f":"LEFT(Tableau1[[#This Row],[Code2]],2)","v":"01"},"Culture et production animale, chasse et services annexes",{"$f":"LEFT(Tableau1[[#This Row],[Code3UID]],4)","v":"01.1"},"Cultures non permanentes","01.15Y","Culture du tabac"]
["A","AGRICULTURE, SYLVICULTURE ET PÊCHE",{"$f":"LEFT(Tableau1[[#This Row],[Code2]],2)","v":"01"},"Culture et production animale, chasse et services annexes",{"$f":"LEFT(Tableau1[[#This Row],[Code3UID]],4)","v":"01.1"},"Cultures non permanentes","01.16Y","Culture de plantes à fibres"]
["A","AGRICULTURE, SYLVICULTURE ET PÊCHE",{"$f":"LEFT(Tableau1[[#This Row],[Code2]],2)","v":"01"},"Culture et production animale, chasse et services annexes",{"$f":"LEFT(Tableau1[[#This Row],[Code3UID]],4)","v":"01.1"},"Cultures non permanentes","01.19Y","Autres cultures non permanentes"]
["A","AGRICULTURE, SYLVICULTURE ET PÊCHE",{"$f":"LEFT(Tableau1[[#This Row],[Code2]],2)","v":"01"},"Culture et production animale, chasse et services annexes",{"$f":"LEFT(Tableau1[[#This Row],[Code3UID]],4)","v":"01.2"},"Cultures permanentes","01.21Y","Culture de la vigne"]
["A","AGRICULTURE, SYLVICULTURE ET PÊCHE",{"$f":"LEFT(Tableau1[[#This Row],[Code2]],2)","v":"01"},"Culture et production animale, chasse et services annexes",{"$f":"LEFT(Tableau1[[#This Row],[Code3UID]],4)","v":"01.2"},"Cultures permanentes","01.22Y","Culture de fruits tropicaux et subtropicaux"]
["A","AGRICULTURE, SYLVICULTURE ET PÊCHE",{"$f":"LEFT(Tableau1[[#This Row],[Code2]],2)","v":"01"},"Culture et production animale, chasse et services annexes",{"$f":"LEFT(Tableau1[[#This Row],[Code3UID]],4)","v":"01.2"},"Cultures permanentes","01.23Y","Culture d’agrumes"]
["A","AGRICULTURE, SYLVICULTURE ET PÊCHE",{"$f":"LEFT(Tableau1[[#This Row],[Code2]],2)","v":"01"},"Culture et production animale, chasse et services annexes",{"$f":"LEFT(Tableau1[[#This Row],[Code3UID]],4)","v":"01.2"},"Cultures permanentes","01.24Y","Culture de fruits à pépins et à noyau"]
["A","AGRICULTURE, SYLVICULTURE ET PÊCHE",{"$f":"LEFT(Tableau1[[#This Row],[Code2]],2)","v":"01"},"Culture et production animale, chasse et services annexes",{"$f":"LEFT(Tableau1[[#This Row],[Code3UID]],4)","v":"01.2"},"Cultures permanentes","01.25Y","Culture d’autres fruits d’arbres ou d’arbustes et de fruits à coque"]
["A","AGRICULTURE, SYLVICULTURE ET PÊCHE",{"$f":"LEFT(Tableau1[[#This Row],[Code2]],2)","v":"01"},"Culture et production animale, chasse et services annexes",{"$f":"LEFT(Tableau1[[#This Row],[Code3UID]],4)","v":"01.2"},"Cultures permanentes","01.26Y","Culture de fruits oléagineux"]
["A","AGRICULTURE, SYLVICULTURE ET PÊCHE",{"$f":"LEFT(Tableau1[[#This Row],[Code2]],2)","v":"01"},"Culture et production animale, chasse et services annexes",{"$f":"LEFT(Tableau1[[#This Row],[Code3UID]],4)","v":"01.2"},"Cultures permanentes","01.27Y","Culture de plantes à boissons"]
["A","AGRICULTURE, SYLVICULTURE ET PÊCHE",{"$f":"LEFT(Tableau1[[#This Row],[Code2]],2)","v":"01"},"Culture et production animale, chasse et services annexes",{"$f":"LEFT(Tableau1[[#This Row],[Code3UID]],4)","v":"01.2"},"Cultures permanentes","01.28Y","Culture de plantes à épices, aromatiques, médicinales et pharmaceutiques"]
["A","AGRICULTURE, SYLVICULTURE ET PÊCHE",{"$f":"LEFT(Tableau1[[#This Row],[Code2]],2)","v":"01"},"Culture et production animale, chasse et services annexes",{"$f":"LEFT(Tableau1[[#This Row],[Code3UID]],4)","v":"01.2"},"Cultures permanentes","01.29Y","Autres cultures permanentes"]
["A","AGRICULTURE, SYLVICULTURE ET PÊCHE",{"$f":"LEFT(Tableau1[[#This Row],[Code2]],2)","v":"01"},"Culture et production animale, chasse et services annexes",{"$f":"LEFT(Tableau1[[#This Row],[Code3UID]],4)","v":"01.3"},"Reproduction de plantes","01.30Y","Reproduction de plantes"]
["A","AGRICULTURE, SYLVICULTURE ET PÊCHE",{"$f":"LEFT(Tableau1[[#This Row],[Code2]],2)","v":"01"},"Culture et production animale, chasse et services annexes",{"$f":"LEFT(Tableau1[[#This Row],[Code3UID]],4)","v":"01.4"},"Production animale","01.41Y","Élevage de vaches laitières"]
["A","AGRICULTURE, SYLVICULTURE ET PÊCHE",{"$f":"LEFT(Tableau1[[#This Row],[Code2]],2)","v":"01"},"Culture et production animale, chasse et services annexes",{"$f":"LEFT(Tableau1[[#This Row],[Code3UID]],4)","v":"01.4"},"Production animale","01.42Y","Élevage d’autres bovins et de buffles"]
["A","AGRICULTURE, SYLVICULTURE ET PÊCHE",{"$f":"LEFT(Tableau1[[#This Row],[Code2]],2)","v":"01"},"Culture et production animale, chasse et services annexes",{"$f":"LEFT(Tableau1[[#This Row],[Code3UID]],4)","v":"01.4"},"Production animale","01.43Y","Élevage de chevaux et d’autres équidés"]
["A","AGRICULTURE, SYLVICULTURE ET PÊCHE",{"$f":"LEFT(Tableau1[[#This Row],[Code2]],2)","v":"01"},"Culture et production animale, chasse et services annexes",{"$f":"LEFT(Tableau1[[#This Row],[Code3UID]],4)","v":"01.4"},"Production animale","01.44Y","Élevage de chameaux et d’autres camélidés"]
["A","AGRICULTURE, SYLVICULTURE ET PÊCHE",{"$f":"LEFT(Tableau1[[#This Row],[Code2]],2)","v":"01"},"Culture et production animale, chasse et services annexes",{"$f":"LEFT(Tableau1[[#This Row],[Code3UID]],4)","v":"01.4"},"Production animale","01.45Y","Élevage d’ovins et de caprins"]
["A","AGRICULTURE, SYLVICULTURE ET PÊCHE",{"$f":"LEFT(Tableau1[[#This Row],[Code2]],2)","v":"01"},"Culture et production animale, chasse et services annexes",{"$f":"LEFT(Tableau1[[#This Row],[Code3UID]],4)","v":"01.4"},"Production animale","01.46Y","Élevage de porcins"]
["A","AGRICULTURE, SYLVICULTURE ET PÊCHE",{"$f":"LEFT(Tableau1[[#This Row],[Code2]],2)","v":"01"},"Culture et production animale, chasse et services annexes",{"$f":"LEFT(Tableau1[[#This Row],[Code3UID]],4)","v":"01.4"},"Production animale","01.47Y","Élevage de volailles"]
["A","AGRICULTURE, SYLVICULTURE ET PÊCHE",{"$f":"LEFT(Tableau1[[#This Row],[Code2]],2)","v":"01"},"Culture et production animale, chasse et services annexes",{"$f":"LEFT(Tableau1[[#This Row],[Code3UID]],4)","v":"01.4"},"Production animale","01.48G","Élevage d'autres animaux Apiculture"]
["A","AGRICULTURE, SYLVICULTURE ET PÊCHE",{"$f":"LEFT(Tableau1[[#This Row],[Code2]],2)","v":"01"},"Culture et production animale, chasse et services annexes",{"$f":"LEFT(Tableau1[[#This Row],[Code3UID]],4)","v":"01.4"},"Production animale","01.48H","Élevage d'autres animaux destinés à la consommation"]
["A","AGRICULTURE, SYLVICULTURE ET PÊCHE",{"$f":"LEFT(Tableau1[[#This Row],[Code2]],2)","v":"01"},"Culture et production animale, chasse et services annexes",{"$f":"LEFT(Tableau1[[#This Row],[Code3UID]],4)","v":"01.4"},"Production animale","01.48J","Élevage d'animaux de compagnie et d'autres animaux n.c.a."]
["A","AGRICULTURE, SYLVICULTURE ET PÊCHE",{"$f":"LEFT(Tableau1[[#This Row],[Code2]],2)","v":"01"},"Culture et production animale, chasse et services annexes",{"$f":"LEFT(Tableau1[[#This Row],[Code3UID]],4)","v":"01.5"},"Culture et élevage associés","01.50Y","Culture et élevage associés"]
["A","AGRICULTURE, SYLVICULTURE ET PÊCHE",{"$f":"LEFT(Tableau1[[#This Row],[Code2]],2)","v":"01"},"Culture et production animale, chasse et services annexes",{"$f":"LEFT(Tableau1[[#This Row],[Code3UID]],4)","v":"01.6"},"Activités de soutien à l’agriculture et traitement primaire des récoltes","01.61Y","Activités de soutien aux cultures"]
["A","AGRICULTURE, SYLVICULTURE ET PÊCHE",{"$f":"LEFT(Tableau1[[#This Row],[Code2]],2)","v":"01"},"Culture et production animale, chasse et services annexes",{"$f":"LEFT(Tableau1[[#This Row],[Code3UID]],4)","v":"01.6"},"Activités de soutien à l’agriculture et traitement primaire des récoltes","01.62Y","Activités de soutien à la production animale"]
["A","AGRICULTURE, SYLVICULTURE ET PÊCHE",{"$f":"LEFT(Tableau1[[#This Row],[Code2]],2)","v":"01"},"Culture et production animale, chasse et services annexes",{"$f":"LEFT(Tableau1[[#This Row],[Code3UID]],4)","v":"01.6"},"Activités de soutien à l’agriculture et traitement primaire des récoltes","01.63Y","Traitement primaire des récoltes et traitement des semences"]
["A","AGRICULTURE, SYLVICULTURE ET PÊCHE",{"$f":"LEFT(Tableau1[[#This Row],[Code2]],2)","v":"01"},"Culture et production animale, chasse et services annexes",{"$f":"LEFT(Tableau1[[#This Row],[Code3UID]],4)","v":"01.7"},"Chasse, piégeage et activités de service connexes","01.70Y","Chasse, piégeage et activités de service connexes"]
["A","AGRICULTURE, SYLVICULTURE ET PÊCHE",{"$f":"LEFT(Tableau1[[#This Row],[Code2]],2)","v":"02"},"Sylviculture et exploitation forestière",{"$f":"LEFT(Tableau1[[#This Row],[Code3UID]],4)","v":"02.1"},"Sylviculture et autres activités forestières","02.10Y","Sylviculture et autres activités forestières"]
["A","AGRICULTURE, SYLVICULTURE ET PÊCHE",{"$f":"LEFT(Tableau1[[#This Row],[Code2]],2)","v":"02"},"Sylviculture et exploitation forestière",{"$f":"LEFT(Tableau1[[#This Row],[Code3UID]],4)","v":"02.2"},"Exploitation forestière","02.20Y","Exploitation forestière"]
["A","AGRICULTURE, SYLVICULTURE ET PÊCHE",{"$f":"LEFT(Tableau1[[#This Row],[Code2]],2)","v":"02"},"Sylviculture et exploitation forestière",{"$f":"LEFT(Tableau1[[#This Row],[Code3UID]],4)","v":"02.3"},"Récolte de produits forestiers non ligneux poussant à l’état sauvage","02.30Y","Récolte de produits forestiers non ligneux poussant à l’état sauvage"]
["A","AGRICULTURE, SYLVICULTURE ET PÊCHE",{"$f":"LEFT(Tableau1[[#This Row],[Code2]],2)","v":"02"},"Sylviculture et exploitation forestière",{"$f":"LEFT(Tableau1[[#This Row],[Code3UID]],4)","v":"02.4"},"Activités de soutien à l’exploitation forestière","02.40Y","Activités de soutien à l’exploitation forestière"]
["A","AGRICULTURE, SYLVICULTURE ET PÊCHE",{"$f":"LEFT(Tableau1[[#This Row],[Code2]],2)","v":"03"},"Pêche et aquaculture",{"$f":"LEFT(Tableau1[[#This Row],[Code3UID]],4)","v":"03.1"},"Pêche","03.11Y","Pêche en mer"]
["A","AGRICULTURE, SYLVICULTURE ET PÊCHE",{"$f":"LEFT(Tableau1[[#This Row],[Code2]],2)","v":"03"},"Pêche et aquaculture",{"$f":"LEFT(Tableau1[[#This Row],[Code3UID]],4)","v":"03.1"},"Pêche","03.12Y","Pêche en eau douce"]
["A","AGRICULTURE, SYLVICULTURE ET PÊCHE",{"$f":"LEFT(Tableau1[[#This Row],[Code2]],2)","v":"03"},"Pêche et aquaculture",{"$f":"LEFT(Tableau1[[#This Row],[Code3UID]],4)","v":"03.2"},"Aquaculture","03.21Y","Aquaculture en mer"]
["A","AGRICULTURE, SYLVICULTURE ET PÊCHE",{"$f":"LEFT(Tableau1[[#This Row],[Code2]],2)","v":"03"},"Pêche et aquaculture",{"$f":"LEFT(Tableau1[[#This Row],[Code3UID]],4)","v":"03.2"},"Aquaculture","03.22Y","Aquaculture en eau douce"]
["A","AGRICULTURE, SYLVICULTURE ET PÊCHE",{"$f":"LEFT(Tableau1[[#This Row],[Code2]],2)","v":"03"},"Pêche et aquaculture",{"$f":"LEFT(Tableau1[[#This Row],[Code3UID]],4)","v":"03.3"},"Activités de soutien à la pêche et l’aquaculture","03.30Y","Activités de soutien à la pêche et l’aquaculture"]
["B","INDUSTRIES EXTRACTIVES",{"$f":"LEFT(Tableau1[[#This Row],[Code2]],2)","v":"05"},"Extraction de houille et de lignite",{"$f":"LEFT(Tableau1[[#This Row],[Code3UID]],4)","v":"05.1"},"Extraction de houille","05.10Y","Extraction de houille"]
["B","INDUSTRIES EXTRACTIVES",{"$f":"LEFT(Tableau1[[#This Row],[Code2]],2)","v":"05"},"Extraction de houille et de lignite",{"$f":"LEFT(Tableau1[[#This Row],[Code3UID]],4)","v":"05.2"},"Extraction de lignite","05.20Y","Extraction de lignite"]
["B","INDUSTRIES EXTRACTIVES",{"$f":"LEFT(Tableau1[[#This Row],[Code2]],2)","v":"06"},"Extraction d’hydrocarbures",{"$f":"LEFT(Tableau1[[#This Row],[Code3UID]],4)","v":"06.1"},"Extraction de pétrole brut","06.10Y","Extraction de pétrole brut"]
["B","INDUSTRIES EXTRACTIVES",{"$f":"LEFT(Tableau1[[#This Row],[Code2]],2)","v":"06"},"Extraction d’hydrocarbures",{"$f":"LEFT(Tableau1[[#This Row],[Code3UID]],4)","v":"06.2"},"Extraction de gaz naturel","06.20Y","Extraction de gaz naturel"]
["B","INDUSTRIES EXTRACTIVES",{"$f":"LEFT(Tableau1[[#This Row],[Code2]],2)","v":"07"},"Extraction de minerais métalliques",{"$f":"LEFT(Tableau1[[#This Row],[Code3UID]],4)","v":"07.1"},"Extraction de minerais de fer","07.10Y","Extraction de minerais de fer"]
["B","INDUSTRIES EXTRACTIVES",{"$f":"LEFT(Tableau1[[#This Row],[Code2]],2)","v":"07"},"Extraction de minerais métalliques",{"$f":"LEFT(Tableau1[[#This Row],[Code3UID]],4)","v":"07.2"},"Extraction de minerais de métaux non ferreux","07.21Y","Extraction de minerais d’uranium et de thorium"]
["B","INDUSTRIES EXTRACTIVES",{"$f":"LEFT(Tableau1[[#This Row],[Code2]],2)","v":"07"},"Extraction de minerais métalliques",{"$f":"LEFT(Tableau1[[#This Row],[Code3UID]],4)","v":"07.2"},"Extraction de minerais de métaux non ferreux","07.29Y","Extraction d’autres minerais de métaux non ferreux"]
["B","INDUSTRIES EXTRACTIVES",{"$f":"LEFT(Tableau1[[#This Row],[Code2]],2)","v":"08"},"Autres industries extractives",{"$f":"LEFT(Tableau1[[#This Row],[Code3UID]],4)","v":"08.1"},"Extraction de pierres, de sables et d’argiles","08.11Y","Extraction de pierres ornementales, de calcaire industriel, de gypse, d’ardoise et d’autres pierres"]
["B","INDUSTRIES EXTRACTIVES",{"$f":"LEFT(Tableau1[[#This Row],[Code2]],2)","v":"08"},"Autres industries extractives",{"$f":"LEFT(Tableau1[[#This Row],[Code3UID]],4)","v":"08.1"},"Extraction de pierres, de sables et d’argiles","08.12Y","Exploitation de gravières et sablières, extraction d’argiles et de kaolin"]
["B","INDUSTRIES EXTRACTIVES",{"$f":"LEFT(Tableau1[[#This Row],[Code2]],2)","v":"08"},"Autres industries extractives",{"$f":"LEFT(Tableau1[[#This Row],[Code3UID]],4)","v":"08.9"},"Activités extractives n.c.a.","08.91Y","Extraction de minéraux chimiques et d’engrais minéraux"]
["B","INDUSTRIES EXTRACTIVES",{"$f":"LEFT(Tableau1[[#This Row],[Code2]],2)","v":"08"},"Autres industries extractives",{"$f":"LEFT(Tableau1[[#This Row],[Code3UID]],4)","v":"08.9"},"Activités extractives n.c.a.","08.92Y","Extraction de tourbe"]
["B","INDUSTRIES EXTRACTIVES",{"$f":"LEFT(Tableau1[[#This Row],[Code2]],2)","v":"08"},"Autres industries extractives",{"$f":"LEFT(Tableau1[[#This Row],[Code3UID]],4)","v":"08.9"},"Activités extractives n.c.a.","08.93Y","Production de sel"]
["B","INDUSTRIES EXTRACTIVES",{"$f":"LEFT(Tableau1[[#This Row],[Code2]],2)","v":"08"},"Autres industries extractives",{"$f":"LEFT(Tableau1[[#This Row],[Code3UID]],4)","v":"08.9"},"Activités extractives n.c.a.","08.99Y","Activités extractives n.c.a."]
["B","INDUSTRIES EXTRACTIVES",{"$f":"LEFT(Tableau1[[#This Row],[Code2]],2)","v":"09"},"Activités de soutien aux industries extractives",{"$f":"LEFT(Tableau1[[#This Row],[Code3UID]],4)","v":"09.1"},"Activités de soutien à l’extraction d’hydrocarbures","09.10Y","Activités de soutien à l’extraction d’hydrocarbures"]
["B","INDUSTRIES EXTRACTIVES",{"$f":"LEFT(Tableau1[[#This Row],[Code2]],2)","v":"09"},"Activités de soutien aux industries extractives",{"$f":"LEFT(Tableau1[[#This Row],[Code3UID]],4)","v":"09.9"},"Activités de soutien aux autres industries extractives","09.90Y","Activités de soutien aux autres industries extractives"]
["C","INDUSTRIE MANUFACTURIÈRE",{"$f":"LEFT(Tableau1[[#This Row],[Code2]],2)","v":"10"},"Industries alimentaires",{"$f":"LEFT(Tableau1[[#This Row],[Code3UID]],4)","v":"10.1"},"Transformation et conservation de la viande et préparation de produits à base de viande","10.11Y","Transformation et conservation de la viande, à l’exception de la viande de volaille"]
["C","INDUSTRIE MANUFACTURIÈRE",{"$f":"LEFT(Tableau1[[#This Row],[Code2]],2)","v":"10"},"Industries alimentaires",{"$f":"LEFT(Tableau1[[#This Row],[Code3UID]],4)","v":"10.1"},"Transformation et conservation de la viande et préparation de produits à base de viande","10.12Y","Transformation et conservation de la viande de volaille"]
["C","INDUSTRIE MANUFACTURIÈRE",{"$f":"LEFT(Tableau1[[#This Row],[Code2]],2)","v":"10"},"Industries alimentaires",{"$f":"LEFT(Tableau1[[#This Row],[Code3UID]],4)","v":"10.1"},"Transformation et conservation de la viande et préparation de produits à base de viande","10.13G","Préparation industrielle de produits à base de viande"]
["C","INDUSTRIE MANUFACTURIÈRE",{"$f":"LEFT(Tableau1[[#This Row],[Code2]],2)","v":"10"},"Industries alimentaires",{"$f":"LEFT(Tableau1[[#This Row],[Code3UID]],4)","v":"10.1"},"Transformation et conservation de la viande et préparation de produits à base de viande","10.13H","Préparation de produits à base de viande associée à leur vente au détail"]
["C","INDUSTRIE MANUFACTURIÈRE",{"$f":"LEFT(Tableau1[[#This Row],[Code2]],2)","v":"10"},"Industries alimentaires",{"$f":"LEFT(Tableau1[[#This Row],[Code3UID]],4)","v":"10.2"},"Transformation et conservation de poisson, de crustacés et de mollusques","10.20Y","Transformation et conservation de poisson, de crustacés et de mollusques"]
["C","INDUSTRIE MANUFACTURIÈRE",{"$f":"LEFT(Tableau1[[#This Row],[Code2]],2)","v":"10"},"Industries alimentaires",{"$f":"LEFT(Tableau1[[#This Row],[Code3UID]],4)","v":"10.3"},"Transformation et conservation de fruits et légumes","10.31Y","Transformation et conservation de pommes de terre"]
["C","INDUSTRIE MANUFACTURIÈRE",{"$f":"LEFT(Tableau1[[#This Row],[Code2]],2)","v":"10"},"Industries alimentaires",{"$f":"LEFT(Tableau1[[#This Row],[Code3UID]],4)","v":"10.3"},"Transformation et conservation de fruits et légumes","10.32Y","Préparation de jus de fruits et légumes"]
["C","INDUSTRIE MANUFACTURIÈRE",{"$f":"LEFT(Tableau1[[#This Row],[Code2]],2)","v":"10"},"Industries alimentaires",{"$f":"LEFT(Tableau1[[#This Row],[Code3UID]],4)","v":"10.3"},"Transformation et conservation de fruits et légumes","10.39G","Autre transformation et conservation de légumes"]
["C","INDUSTRIE MANUFACTURIÈRE",{"$f":"LEFT(Tableau1[[#This Row],[Code2]],2)","v":"10"},"Industries alimentaires",{"$f":"LEFT(Tableau1[[#This Row],[Code3UID]],4)","v":"10.3"},"Transformation et conservation de fruits et légumes","10.39H","Autre transformation et conservation de fruits"]
["C","INDUSTRIE MANUFACTURIÈRE",{"$f":"LEFT(Tableau1[[#This Row],[Code2]],2)","v":"10"},"Industries alimentaires",{"$f":"LEFT(Tableau1[[#This Row],[Code3UID]],4)","v":"10.4"},"Fabrication d’huiles et graisses végétales et animales","10.41Y","Fabrication d’huiles et graisses"]
["C","INDUSTRIE MANUFACTURIÈRE",{"$f":"LEFT(Tableau1[[#This Row],[Code2]],2)","v":"10"},"Industries alimentaires",{"$f":"LEFT(Tableau1[[#This Row],[Code3UID]],4)","v":"10.4"},"Fabrication d’huiles et graisses végétales et animales","10.42Y","Fabrication de margarine et graisses comestibles similaires"]
["C","INDUSTRIE MANUFACTURIÈRE",{"$f":"LEFT(Tableau1[[#This Row],[Code2]],2)","v":"10"},"Industries alimentaires",{"$f":"LEFT(Tableau1[[#This Row],[Code3UID]],4)","v":"10.5"},"Fabrication de produits laitiers et de glace alimentaire","10.51G","Fabrication de lait liquide, crèmes de lait et laits fermentés"]
["C","INDUSTRIE MANUFACTURIÈRE",{"$f":"LEFT(Tableau1[[#This Row],[Code2]],2)","v":"10"},"Industries alimentaires",{"$f":"LEFT(Tableau1[[#This Row],[Code3UID]],4)","v":"10.5"},"Fabrication de produits laitiers et de glace alimentaire","10.51H","Fabrication de fromage"]
["C","INDUSTRIE MANUFACTURIÈRE",{"$f":"LEFT(Tableau1[[#This Row],[Code2]],2)","v":"10"},"Industries alimentaires",{"$f":"LEFT(Tableau1[[#This Row],[Code3UID]],4)","v":"10.5"},"Fabrication de produits laitiers et de glace alimentaire","10.51J","Fabrication de beurre et d'autres produits laitiers"]
["C","INDUSTRIE MANUFACTURIÈRE",{"$f":"LEFT(Tableau1[[#This Row],[Code2]],2)","v":"10"},"Industries alimentaires",{"$f":"LEFT(Tableau1[[#This Row],[Code3UID]],4)","v":"10.5"},"Fabrication de produits laitiers et de glace alimentaire","10.52Y","Fabrication de crèmes glacées et autres glaces alimentaires"]
["C","INDUSTRIE MANUFACTURIÈRE",{"$f":"LEFT(Tableau1[[#This Row],[Code2]],2)","v":"10"},"Industries alimentaires",{"$f":"LEFT(Tableau1[[#This Row],[Code3UID]],4)","v":"10.6"},"Travail des grains ; fabrication de produits amylacés","10.61G","Meunerie"]
["C","INDUSTRIE MANUFACTURIÈRE",{"$f":"LEFT(Tableau1[[#This Row],[Code2]],2)","v":"10"},"Industries alimentaires",{"$f":"LEFT(Tableau1[[#This Row],[Code3UID]],4)","v":"10.6"},"Travail des grains ; fabrication de produits amylacés","10.61H","Autres activités du travail des grains"]
["C","INDUSTRIE MANUFACTURIÈRE",{"$f":"LEFT(Tableau1[[#This Row],[Code2]],2)","v":"10"},"Industries alimentaires",{"$f":"LEFT(Tableau1[[#This Row],[Code3UID]],4)","v":"10.6"},"Travail des grains ; fabrication de produits amylacés","10.62Y","Fabrication de produits amylacés"]
["C","INDUSTRIE MANUFACTURIÈRE",{"$f":"LEFT(Tableau1[[#This Row],[Code2]],2)","v":"10"},"Industries alimentaires",{"$f":"LEFT(Tableau1[[#This Row],[Code3UID]],4)","v":"10.7"},"Fabrication de produits de boulangerie-pâtisserie et de pâtes alimentaires","10.71G","Fabrication industrielle de pain et de pâtisserie fraîche"]
["C","INDUSTRIE MANUFACTURIÈRE",{"$f":"LEFT(Tableau1[[#This Row],[Code2]],2)","v":"10"},"Industries alimentaires",{"$f":"LEFT(Tableau1[[#This Row],[Code3UID]],4)","v":"10.7"},"Fabrication de produits de boulangerie-pâtisserie et de pâtes alimentaires","10.71H","Fabrication de pain et d'autres produits de boulangerie-pâtisserie associée à leur vente au détail"]
["C","INDUSTRIE MANUFACTURIÈRE",{"$f":"LEFT(Tableau1[[#This Row],[Code2]],2)","v":"10"},"Industries alimentaires",{"$f":"LEFT(Tableau1[[#This Row],[Code3UID]],4)","v":"10.7"},"Fabrication de produits de boulangerie-pâtisserie et de pâtes alimentaires","10.71J","Fabrication de pâtisserie fraîche associée à sa vente au détail"]
["C","INDUSTRIE MANUFACTURIÈRE",{"$f":"LEFT(Tableau1[[#This Row],[Code2]],2)","v":"10"},"Industries alimentaires",{"$f":"LEFT(Tableau1[[#This Row],[Code3UID]],4)","v":"10.7"},"Fabrication de produits de boulangerie-pâtisserie et de pâtes alimentaires","10.72Y","Fabrication de biscuits, biscottes et pâtisseries de conservation"]
["C","INDUSTRIE MANUFACTURIÈRE",{"$f":"LEFT(Tableau1[[#This Row],[Code2]],2)","v":"10"},"Industries alimentaires",{"$f":"LEFT(Tableau1[[#This Row],[Code3UID]],4)","v":"10.7"},"Fabrication de produits de boulangerie-pâtisserie et de pâtes alimentaires","10.73Y","Fabrication de pâtes alimentaires"]
["C","INDUSTRIE MANUFACTURIÈRE",{"$f":"LEFT(Tableau1[[#This Row],[Code2]],2)","v":"10"},"Industries alimentaires",{"$f":"LEFT(Tableau1[[#This Row],[Code3UID]],4)","v":"10.8"},"Fabrication d’autres produits alimentaires","10.81Y","Fabrication de sucre"]
["C","INDUSTRIE MANUFACTURIÈRE",{"$f":"LEFT(Tableau1[[#This Row],[Code2]],2)","v":"10"},"Industries alimentaires",{"$f":"LEFT(Tableau1[[#This Row],[Code3UID]],4)","v":"10.8"},"Fabrication d’autres produits alimentaires","10.82Y","Fabrication de cacao, de chocolat et de produits de confiserie"]
["C","INDUSTRIE MANUFACTURIÈRE",{"$f":"LEFT(Tableau1[[#This Row],[Code2]],2)","v":"10"},"Industries alimentaires",{"$f":"LEFT(Tableau1[[#This Row],[Code3UID]],4)","v":"10.8"},"Fabrication d’autres produits alimentaires","10.83Y","Transformation du thé et du café"]
["C","INDUSTRIE MANUFACTURIÈRE",{"$f":"LEFT(Tableau1[[#This Row],[Code2]],2)","v":"10"},"Industries alimentaires",{"$f":"LEFT(Tableau1[[#This Row],[Code3UID]],4)","v":"10.8"},"Fabrication d’autres produits alimentaires","10.84Y","Fabrication de condiments et assaisonnements"]
["C","INDUSTRIE MANUFACTURIÈRE",{"$f":"LEFT(Tableau1[[#This Row],[Code2]],2)","v":"10"},"Industries alimentaires",{"$f":"LEFT(Tableau1[[#This Row],[Code3UID]],4)","v":"10.8"},"Fabrication d’autres produits alimentaires","10.85Y","Fabrication de plats préparés"]
["C","INDUSTRIE MANUFACTURIÈRE",{"$f":"LEFT(Tableau1[[#This Row],[Code2]],2)","v":"10"},"Industries alimentaires",{"$f":"LEFT(Tableau1[[#This Row],[Code3UID]],4)","v":"10.8"},"Fabrication d’autres produits alimentaires","10.86Y","Fabrication d’aliments homogénéisés et diététiques"]
["C","INDUSTRIE MANUFACTURIÈRE",{"$f":"LEFT(Tableau1[[#This Row],[Code2]],2)","v":"10"},"Industries alimentaires",{"$f":"LEFT(Tableau1[[#This Row],[Code3UID]],4)","v":"10.8"},"Fabrication d’autres produits alimentaires","10.89Y","Fabrication d’autres produits alimentaires n.c.a."]
["C","INDUSTRIE MANUFACTURIÈRE",{"$f":"LEFT(Tableau1[[#This Row],[Code2]],2)","v":"10"},"Industries alimentaires",{"$f":"LEFT(Tableau1[[#This Row],[Code3UID]],4)","v":"10.9"},"Fabrication d’aliments pour animaux","10.91Y","Fabrication d’aliments pour animaux de ferme"]
["C","INDUSTRIE MANUFACTURIÈRE",{"$f":"LEFT(Tableau1[[#This Row],[Code2]],2)","v":"10"},"Industries alimentaires",{"$f":"LEFT(Tableau1[[#This Row],[Code3UID]],4)","v":"10.9"},"Fabrication d’aliments pour animaux","10.92Y","Fabrication d’aliments pour animaux de compagnie"]
["C","INDUSTRIE MANUFACTURIÈRE",{"$f":"LEFT(Tableau1[[#This Row],[Code2]],2)","v":"11"},"Fabrication de boissons",{"$f":"LEFT(Tableau1[[#This Row],[Code3UID]],4)","v":"11.0"},"Fabrication de boissons","11.01Y","Production de boissons alcoolisées distillées"]
["C","INDUSTRIE MANUFACTURIÈRE",{"$f":"LEFT(Tableau1[[#This Row],[Code2]],2)","v":"11"},"Fabrication de boissons",{"$f":"LEFT(Tableau1[[#This Row],[Code3UID]],4)","v":"11.0"},"Fabrication de boissons","11.02G","Fabrication de vins effervescents"]
["C","INDUSTRIE MANUFACTURIÈRE",{"$f":"LEFT(Tableau1[[#This Row],[Code2]],2)","v":"11"},"Fabrication de boissons",{"$f":"LEFT(Tableau1[[#This Row],[Code3UID]],4)","v":"11.0"},"Fabrication de boissons","11.02H","Fabrication de vins non effervescents"]
["C","INDUSTRIE MANUFACTURIÈRE",{"$f":"LEFT(Tableau1[[#This Row],[Code2]],2)","v":"11"},"Fabrication de boissons",{"$f":"LEFT(Tableau1[[#This Row],[Code3UID]],4)","v":"11.0"},"Fabrication de boissons","11.03Y","Fabrication de cidre et autres boissons fermentées à base de fruits"]
["C","INDUSTRIE MANUFACTURIÈRE",{"$f":"LEFT(Tableau1[[#This Row],[Code2]],2)","v":"11"},"Fabrication de boissons",{"$f":"LEFT(Tableau1[[#This Row],[Code3UID]],4)","v":"11.0"},"Fabrication de boissons","11.04Y","Production d’autres boissons fermentées non distillées"]
["C","INDUSTRIE MANUFACTURIÈRE",{"$f":"LEFT(Tableau1[[#This Row],[Code2]],2)","v":"11"},"Fabrication de boissons",{"$f":"LEFT(Tableau1[[#This Row],[Code3UID]],4)","v":"11.0"},"Fabrication de boissons","11.05Y","Fabrication de bière"]
["C","INDUSTRIE MANUFACTURIÈRE",{"$f":"LEFT(Tableau1[[#This Row],[Code2]],2)","v":"11"},"Fabrication de boissons",{"$f":"LEFT(Tableau1[[#This Row],[Code3UID]],4)","v":"11.0"},"Fabrication de boissons","11.06Y","Fabrication de malt"]
["C","INDUSTRIE MANUFACTURIÈRE",{"$f":"LEFT(Tableau1[[#This Row],[Code2]],2)","v":"11"},"Fabrication de boissons",{"$f":"LEFT(Tableau1[[#This Row],[Code3UID]],4)","v":"11.0"},"Fabrication de boissons","11.07G","Industrie des eaux de table"]
["C","INDUSTRIE MANUFACTURIÈRE",{"$f":"LEFT(Tableau1[[#This Row],[Code2]],2)","v":"11"},"Fabrication de boissons",{"$f":"LEFT(Tableau1[[#This Row],[Code3UID]],4)","v":"11.0"},"Fabrication de boissons","11.07H","Production d'autres boissons non alcoolisées"]
["C","INDUSTRIE MANUFACTURIÈRE",{"$f":"LEFT(Tableau1[[#This Row],[Code2]],2)","v":"12"},"Fabrication de produits à base de tabac",{"$f":"LEFT(Tableau1[[#This Row],[Code3UID]],4)","v":"12.0"},"Fabrication de produits à base de tabac","12.00Y","Fabrication de produits à base de tabac"]
["C","INDUSTRIE MANUFACTURIÈRE",{"$f":"LEFT(Tableau1[[#This Row],[Code2]],2)","v":"13"},"Fabrication de textiles",{"$f":"LEFT(Tableau1[[#This Row],[Code3UID]],4)","v":"13.1"},"Préparation de fibres textiles et filature","13.10Y","Préparation de fibres textiles et filature"]
["C","INDUSTRIE MANUFACTURIÈRE",{"$f":"LEFT(Tableau1[[#This Row],[Code2]],2)","v":"13"},"Fabrication de textiles",{"$f":"LEFT(Tableau1[[#This Row],[Code3UID]],4)","v":"13.2"},"Tissage","13.20Y","Tissage"]
["C","INDUSTRIE MANUFACTURIÈRE",{"$f":"LEFT(Tableau1[[#This Row],[Code2]],2)","v":"13"},"Fabrication de textiles",{"$f":"LEFT(Tableau1[[#This Row],[Code3UID]],4)","v":"13.3"},"Ennoblissement textile","13.30Y","Ennoblissement textile"]
["C","INDUSTRIE MANUFACTURIÈRE",{"$f":"LEFT(Tableau1[[#This Row],[Code2]],2)","v":"13"},"Fabrication de textiles",{"$f":"LEFT(Tableau1[[#This Row],[Code3UID]],4)","v":"13.9"},"Fabrication d’autres textiles","13.91Y","Fabrication d’étoffes à mailles"]
["C","INDUSTRIE MANUFACTURIÈRE",{"$f":"LEFT(Tableau1[[#This Row],[Code2]],2)","v":"13"},"Fabrication de textiles",{"$f":"LEFT(Tableau1[[#This Row],[Code3UID]],4)","v":"13.9"},"Fabrication d’autres textiles","13.92Y","Fabrication de textiles ménagers et d’articles"]
["C","INDUSTRIE MANUFACTURIÈRE",{"$f":"LEFT(Tableau1[[#This Row],[Code2]],2)","v":"13"},"Fabrication de textiles",{"$f":"LEFT(Tableau1[[#This Row],[Code3UID]],4)","v":"13.9"},"Fabrication d’autres textiles","13.93Y","Fabrication de tapis et moquettes"]
["C","INDUSTRIE MANUFACTURIÈRE",{"$f":"LEFT(Tableau1[[#This Row],[Code2]],2)","v":"13"},"Fabrication de textiles",{"$f":"LEFT(Tableau1[[#This Row],[Code3UID]],4)","v":"13.9"},"Fabrication d’autres textiles","13.94Y","Fabrication de ficelles, cordes et filets"]
["C","INDUSTRIE MANUFACTURIÈRE",{"$f":"LEFT(Tableau1[[#This Row],[Code2]],2)","v":"13"},"Fabrication de textiles",{"$f":"LEFT(Tableau1[[#This Row],[Code3UID]],4)","v":"13.9"},"Fabrication d’autres textiles","13.95Y","Fabrication de textiles non-tissés et articles"]
["C","INDUSTRIE MANUFACTURIÈRE",{"$f":"LEFT(Tableau1[[#This Row],[Code2]],2)","v":"13"},"Fabrication de textiles",{"$f":"LEFT(Tableau1[[#This Row],[Code3UID]],4)","v":"13.9"},"Fabrication d’autres textiles","13.96Y","Fabrication d’autres textiles techniques"]
["C","INDUSTRIE MANUFACTURIÈRE",{"$f":"LEFT(Tableau1[[#This Row],[Code2]],2)","v":"13"},"Fabrication de textiles",{"$f":"LEFT(Tableau1[[#This Row],[Code3UID]],4)","v":"13.9"},"Fabrication d’autres textiles","13.99Y","Fabrication d’autres textiles n.c.a."]
["C","INDUSTRIE MANUFACTURIÈRE",{"$f":"LEFT(Tableau1[[#This Row],[Code2]],2)","v":"14"},"Industrie de l’habillement",{"$f":"LEFT(Tableau1[[#This Row],[Code3UID]],4)","v":"14.1"},"Fabrication d’articles à mailles","14.10Y","Fabrication d’articles à mailles"]
["C","INDUSTRIE MANUFACTURIÈRE",{"$f":"LEFT(Tableau1[[#This Row],[Code2]],2)","v":"14"},"Industrie de l’habillement",{"$f":"LEFT(Tableau1[[#This Row],[Code3UID]],4)","v":"14.2"},"Fabrication d’autres articles d’habillement et accessoires","14.21Y","Fabrication de vêtements de dessus"]
["C","INDUSTRIE MANUFACTURIÈRE",{"$f":"LEFT(Tableau1[[#This Row],[Code2]],2)","v":"14"},"Industrie de l’habillement",{"$f":"LEFT(Tableau1[[#This Row],[Code3UID]],4)","v":"14.2"},"Fabrication d’autres articles d’habillement et accessoires","14.22Y","Fabrication de vêtements de dessous"]
["C","INDUSTRIE MANUFACTURIÈRE",{"$f":"LEFT(Tableau1[[#This Row],[Code2]],2)","v":"14"},"Industrie de l’habillement",{"$f":"LEFT(Tableau1[[#This Row],[Code3UID]],4)","v":"14.2"},"Fabrication d’autres articles d’habillement et accessoires","14.23Y","Fabrication de vêtements de travail"]
["C","INDUSTRIE MANUFACTURIÈRE",{"$f":"LEFT(Tableau1[[#This Row],[Code2]],2)","v":"14"},"Industrie de l’habillement",{"$f":"LEFT(Tableau1[[#This Row],[Code3UID]],4)","v":"14.2"},"Fabrication d’autres articles d’habillement et accessoires","14.24Y","Fabrication de vêtements en cuir et en fourrure"]
["C","INDUSTRIE MANUFACTURIÈRE",{"$f":"LEFT(Tableau1[[#This Row],[Code2]],2)","v":"14"},"Industrie de l’habillement",{"$f":"LEFT(Tableau1[[#This Row],[Code3UID]],4)","v":"14.2"},"Fabrication d’autres articles d’habillement et accessoires","14.29Y","Fabrication d’autres articles d’habillement et accessoires n.c.a."]
["C","INDUSTRIE MANUFACTURIÈRE",{"$f":"LEFT(Tableau1[[#This Row],[Code2]],2)","v":"15"},"Fabrication de cuir, d’articles en cuir et de produits similaires dans d’autres matières",{"$f":"LEFT(Tableau1[[#This Row],[Code3UID]],4)","v":"15.1"},"Tannage, apprêt et teinture des cuirs et des fourrures ; fabrication de bagages, de maroquinerie, sellerie et bourrellerie","15.11Y","Tannage, apprêt et teinture des cuirs et des fourrures"]
["C","INDUSTRIE MANUFACTURIÈRE",{"$f":"LEFT(Tableau1[[#This Row],[Code2]],2)","v":"15"},"Fabrication de cuir, d’articles en cuir et de produits similaires dans d’autres matières",{"$f":"LEFT(Tableau1[[#This Row],[Code3UID]],4)","v":"15.1"},"Tannage, apprêt et teinture des cuirs et des fourrures ; fabrication de bagages, de maroquinerie, sellerie et bourrellerie","15.12Y","Fabrication de bagages, de maroquinerie, sellerie et bourrellerie, en toutes matières"]
["C","INDUSTRIE MANUFACTURIÈRE",{"$f":"LEFT(Tableau1[[#This Row],[Code2]],2)","v":"15"},"Fabrication de cuir, d’articles en cuir et de produits similaires dans d’autres matières",{"$f":"LEFT(Tableau1[[#This Row],[Code3UID]],4)","v":"15.2"},"Fabrication de chaussures","15.20Y","Fabrication de chaussures"]
["C","INDUSTRIE MANUFACTURIÈRE",{"$f":"LEFT(Tableau1[[#This Row],[Code2]],2)","v":"16"},"Travail du bois et fabrication d’articles en bois et en liège, à l’exception des meubles ; fabrication d’articles en vannerie et sparterie",{"$f":"LEFT(Tableau1[[#This Row],[Code3UID]],4)","v":"16.1"},"Sciage et rabotage du bois ; façonnage et finition du bois","16.11Y","Sciage et rabotage du bois"]
["C","INDUSTRIE MANUFACTURIÈRE",{"$f":"LEFT(Tableau1[[#This Row],[Code2]],2)","v":"16"},"Travail du bois et fabrication d’articles en bois et en liège, à l’exception des meubles ; fabrication d’articles en vannerie et sparterie",{"$f":"LEFT(Tableau1[[#This Row],[Code3UID]],4)","v":"16.1"},"Sciage et rabotage du bois ; façonnage et finition du bois","16.12Y","Façonnage et finition du bois"]
["C","INDUSTRIE MANUFACTURIÈRE",{"$f":"LEFT(Tableau1[[#This Row],[Code2]],2)","v":"16"},"Travail du bois et fabrication d’articles en bois et en liège, à l’exception des meubles ; fabrication d’articles en vannerie et sparterie",{"$f":"LEFT(Tableau1[[#This Row],[Code3UID]],4)","v":"16.2"},"Fabrication d’articles en bois, liège, vannerie et sparterie","16.21Y","Fabrication de placage et de panneaux de bois"]
["C","INDUSTRIE MANUFACTURIÈRE",{"$f":"LEFT(Tableau1[[#This Row],[Code2]],2)","v":"16"},"Travail du bois et fabrication d’articles en bois et en liège, à l’exception des meubles ; fabrication d’articles en vannerie et sparterie",{"$f":"LEFT(Tableau1[[#This Row],[Code3UID]],4)","v":"16.2"},"Fabrication d’articles en bois, liège, vannerie et sparterie","16.22Y","Fabrication de parquets assemblés"]
["C","INDUSTRIE MANUFACTURIÈRE",{"$f":"LEFT(Tableau1[[#This Row],[Code2]],2)","v":"16"},"Travail du bois et fabrication d’articles en bois et en liège, à l’exception des meubles ; fabrication d’articles en vannerie et sparterie",{"$f":"LEFT(Tableau1[[#This Row],[Code3UID]],4)","v":"16.2"},"Fabrication d’articles en bois, liège, vannerie et sparterie","16.23Y","Fabrication de charpentes et d’autres menuiseries"]
["C","INDUSTRIE MANUFACTURIÈRE",{"$f":"LEFT(Tableau1[[#This Row],[Code2]],2)","v":"16"},"Travail du bois et fabrication d’articles en bois et en liège, à l’exception des meubles ; fabrication d’articles en vannerie et sparterie",{"$f":"LEFT(Tableau1[[#This Row],[Code3UID]],4)","v":"16.2"},"Fabrication d’articles en bois, liège, vannerie et sparterie","16.24Y","Fabrication d’emballages en bois"]
["C","INDUSTRIE MANUFACTURIÈRE",{"$f":"LEFT(Tableau1[[#This Row],[Code2]],2)","v":"16"},"Travail du bois et fabrication d’articles en bois et en liège, à l’exception des meubles ; fabrication d’articles en vannerie et sparterie",{"$f":"LEFT(Tableau1[[#This Row],[Code3UID]],4)","v":"16.2"},"Fabrication d’articles en bois, liège, vannerie et sparterie","16.25Y","Fabrication de portes et fenêtres en bois"]
["C","INDUSTRIE MANUFACTURIÈRE",{"$f":"LEFT(Tableau1[[#This Row],[Code2]],2)","v":"16"},"Travail du bois et fabrication d’articles en bois et en liège, à l’exception des meubles ; fabrication d’articles en vannerie et sparterie",{"$f":"LEFT(Tableau1[[#This Row],[Code3UID]],4)","v":"16.2"},"Fabrication d’articles en bois, liège, vannerie et sparterie","16.26Y","Fabrication de combustibles solides à partir de biomasse végétale"]
["C","INDUSTRIE MANUFACTURIÈRE",{"$f":"LEFT(Tableau1[[#This Row],[Code2]],2)","v":"16"},"Travail du bois et fabrication d’articles en bois et en liège, à l’exception des meubles ; fabrication d’articles en vannerie et sparterie",{"$f":"LEFT(Tableau1[[#This Row],[Code3UID]],4)","v":"16.2"},"Fabrication d’articles en bois, liège, vannerie et sparterie","16.27Y","Finition de produits en bois"]
["C","INDUSTRIE MANUFACTURIÈRE",{"$f":"LEFT(Tableau1[[#This Row],[Code2]],2)","v":"16"},"Travail du bois et fabrication d’articles en bois et en liège, à l’exception des meubles ; fabrication d’articles en vannerie et sparterie",{"$f":"LEFT(Tableau1[[#This Row],[Code3UID]],4)","v":"16.2"},"Fabrication d’articles en bois, liège, vannerie et sparterie","16.28Y","Fabrication d’objets divers en bois, d’objets en liège, vannerie et sparterie"]
["C","INDUSTRIE MANUFACTURIÈRE",{"$f":"LEFT(Tableau1[[#This Row],[Code2]],2)","v":"17"},"Industrie du papier et du carton",{"$f":"LEFT(Tableau1[[#This Row],[Code3UID]],4)","v":"17.1"},"Fabrication de pâte à papier, de papier et de carton","17.11Y","Fabrication de pâte à papier"]
["C","INDUSTRIE MANUFACTURIÈRE",{"$f":"LEFT(Tableau1[[#This Row],[Code2]],2)","v":"17"},"Industrie du papier et du carton",{"$f":"LEFT(Tableau1[[#This Row],[Code3UID]],4)","v":"17.1"},"Fabrication de pâte à papier, de papier et de carton","17.12Y","Fabrication de papier et de carton"]
["C","INDUSTRIE MANUFACTURIÈRE",{"$f":"LEFT(Tableau1[[#This Row],[Code2]],2)","v":"17"},"Industrie du papier et du carton",{"$f":"LEFT(Tableau1[[#This Row],[Code3UID]],4)","v":"17.2"},"Fabrication d’articles en papier ou en carton","17.21Y","Fabrication de papier et carton ondulés et d’emballages en papier ou en carton"]
["C","INDUSTRIE MANUFACTURIÈRE",{"$f":"LEFT(Tableau1[[#This Row],[Code2]],2)","v":"17"},"Industrie du papier et du carton",{"$f":"LEFT(Tableau1[[#This Row],[Code3UID]],4)","v":"17.2"},"Fabrication d’articles en papier ou en carton","17.22Y","Fabrication d’articles en papier à usage sanitaire ou domestique"]
["C","INDUSTRIE MANUFACTURIÈRE",{"$f":"LEFT(Tableau1[[#This Row],[Code2]],2)","v":"17"},"Industrie du papier et du carton",{"$f":"LEFT(Tableau1[[#This Row],[Code3UID]],4)","v":"17.2"},"Fabrication d’articles en papier ou en carton","17.23Y","Fabrication d’articles de papeterie"]
["C","INDUSTRIE MANUFACTURIÈRE",{"$f":"LEFT(Tableau1[[#This Row],[Code2]],2)","v":"17"},"Industrie du papier et du carton",{"$f":"LEFT(Tableau1[[#This Row],[Code3UID]],4)","v":"17.2"},"Fabrication d’articles en papier ou en carton","17.24Y","Fabrication de papiers peints"]
["C","INDUSTRIE MANUFACTURIÈRE",{"$f":"LEFT(Tableau1[[#This Row],[Code2]],2)","v":"17"},"Industrie du papier et du carton",{"$f":"LEFT(Tableau1[[#This Row],[Code3UID]],4)","v":"17.2"},"Fabrication d’articles en papier ou en carton","17.25Y","Fabrication d’autres articles en papier ou en carton"]
["C","INDUSTRIE MANUFACTURIÈRE",{"$f":"LEFT(Tableau1[[#This Row],[Code2]],2)","v":"18"},"Imprimerie et reproduction d’enregistrements",{"$f":"LEFT(Tableau1[[#This Row],[Code3UID]],4)","v":"18.1"},"Imprimerie et services annexes","18.11Y","Imprimerie de journaux"]
["C","INDUSTRIE MANUFACTURIÈRE",{"$f":"LEFT(Tableau1[[#This Row],[Code2]],2)","v":"18"},"Imprimerie et reproduction d’enregistrements",{"$f":"LEFT(Tableau1[[#This Row],[Code3UID]],4)","v":"18.1"},"Imprimerie et services annexes","18.12Y","Autres activités d’imprimerie"]
["C","INDUSTRIE MANUFACTURIÈRE",{"$f":"LEFT(Tableau1[[#This Row],[Code2]],2)","v":"18"},"Imprimerie et reproduction d’enregistrements",{"$f":"LEFT(Tableau1[[#This Row],[Code3UID]],4)","v":"18.1"},"Imprimerie et services annexes","18.13Y","Activités de pré-presse"]
["C","INDUSTRIE MANUFACTURIÈRE",{"$f":"LEFT(Tableau1[[#This Row],[Code2]],2)","v":"18"},"Imprimerie et reproduction d’enregistrements",{"$f":"LEFT(Tableau1[[#This Row],[Code3UID]],4)","v":"18.1"},"Imprimerie et services annexes","18.14Y","Reliure et activités connexes"]
["C","INDUSTRIE MANUFACTURIÈRE",{"$f":"LEFT(Tableau1[[#This Row],[Code2]],2)","v":"18"},"Imprimerie et reproduction d’enregistrements",{"$f":"LEFT(Tableau1[[#This Row],[Code3UID]],4)","v":"18.2"},"Reproduction d’enregistrements","18.20Y","Reproduction d’enregistrements"]
["C","INDUSTRIE MANUFACTURIÈRE",{"$f":"LEFT(Tableau1[[#This Row],[Code2]],2)","v":"19"},"Cokéfaction et raffinage",{"$f":"LEFT(Tableau1[[#This Row],[Code3UID]],4)","v":"19.1"},"Cokéfaction","19.10Y","Cokéfaction"]
["C","INDUSTRIE MANUFACTURIÈRE",{"$f":"LEFT(Tableau1[[#This Row],[Code2]],2)","v":"19"},"Cokéfaction et raffinage",{"$f":"LEFT(Tableau1[[#This Row],[Code3UID]],4)","v":"19.2"},"Raffinage du pétrole et fabrication de produits à base de combustibles fossiles","19.20Y","Raffinage du pétrole et fabrication de produits à base de combustibles fossiles"]
["C","INDUSTRIE MANUFACTURIÈRE",{"$f":"LEFT(Tableau1[[#This Row],[Code2]],2)","v":"20"},"Industrie chimique",{"$f":"LEFT(Tableau1[[#This Row],[Code3UID]],4)","v":"20.1"},"Fabrication de produits chimiques de base, de produits azotés et d’engrais, de matières plastiques de base et de caoutchouc synthétique","20.11Y","Fabrication de gaz industriels"]
["C","INDUSTRIE MANUFACTURIÈRE",{"$f":"LEFT(Tableau1[[#This Row],[Code2]],2)","v":"20"},"Industrie chimique",{"$f":"LEFT(Tableau1[[#This Row],[Code3UID]],4)","v":"20.1"},"Fabrication de produits chimiques de base, de produits azotés et d’engrais, de matières plastiques de base et de caoutchouc synthétique","20.12Y","Fabrication de colorants et de pigments"]
["C","INDUSTRIE MANUFACTURIÈRE",{"$f":"LEFT(Tableau1[[#This Row],[Code2]],2)","v":"20"},"Industrie chimique",{"$f":"LEFT(Tableau1[[#This Row],[Code3UID]],4)","v":"20.1"},"Fabrication de produits chimiques de base, de produits azotés et d’engrais, de matières plastiques de base et de caoutchouc synthétique","20.13Y","Fabrication d’autres produits chimiques inorganiques de base"]
["C","INDUSTRIE MANUFACTURIÈRE",{"$f":"LEFT(Tableau1[[#This Row],[Code2]],2)","v":"20"},"Industrie chimique",{"$f":"LEFT(Tableau1[[#This Row],[Code3UID]],4)","v":"20.1"},"Fabrication de produits chimiques de base, de produits azotés et d’engrais, de matières plastiques de base et de caoutchouc synthétique","20.14Y","Fabrication d’autres produits chimiques organiques de base"]
["C","INDUSTRIE MANUFACTURIÈRE",{"$f":"LEFT(Tableau1[[#This Row],[Code2]],2)","v":"20"},"Industrie chimique",{"$f":"LEFT(Tableau1[[#This Row],[Code3UID]],4)","v":"20.1"},"Fabrication de produits chimiques de base, de produits azotés et d’engrais, de matières plastiques de base et de caoutchouc synthétique","20.15Y","Fabrication de produits azotés et d’engrais"]
["C","INDUSTRIE MANUFACTURIÈRE",{"$f":"LEFT(Tableau1[[#This Row],[Code2]],2)","v":"20"},"Industrie chimique",{"$f":"LEFT(Tableau1[[#This Row],[Code3UID]],4)","v":"20.1"},"Fabrication de produits chimiques de base, de produits azotés et d’engrais, de matières plastiques de base et de caoutchouc synthétique","20.16Y","Fabrication de matières plastiques de base"]
["C","INDUSTRIE MANUFACTURIÈRE",{"$f":"LEFT(Tableau1[[#This Row],[Code2]],2)","v":"20"},"Industrie chimique",{"$f":"LEFT(Tableau1[[#This Row],[Code3UID]],4)","v":"20.1"},"Fabrication de produits chimiques de base, de produits azotés et d’engrais, de matières plastiques de base et de caoutchouc synthétique","20.17Y","Fabrication de caoutchouc synthétique"]
["C","INDUSTRIE MANUFACTURIÈRE",{"$f":"LEFT(Tableau1[[#This Row],[Code2]],2)","v":"20"},"Industrie chimique",{"$f":"LEFT(Tableau1[[#This Row],[Code3UID]],4)","v":"20.2"},"Fabrication de pesticides, de désinfectants et d’autres produits agrochimiques","20.20Y","Fabrication de pesticides, de désinfectants et d’autres produits agrochimiques"]
["C","INDUSTRIE MANUFACTURIÈRE",{"$f":"LEFT(Tableau1[[#This Row],[Code2]],2)","v":"20"},"Industrie chimique",{"$f":"LEFT(Tableau1[[#This Row],[Code3UID]],4)","v":"20.3"},"Fabrication de peintures, vernis, encres et mastics","20.30Y","Fabrication de peintures, vernis, encres et mastics"]
["C","INDUSTRIE MANUFACTURIÈRE",{"$f":"LEFT(Tableau1[[#This Row],[Code2]],2)","v":"20"},"Industrie chimique",{"$f":"LEFT(Tableau1[[#This Row],[Code3UID]],4)","v":"20.4"},"Fabrication de savons et de produits d’entretien","20.41Y","Fabrication de savons, détergents et produits d’entretien"]
["C","INDUSTRIE MANUFACTURIÈRE",{"$f":"LEFT(Tableau1[[#This Row],[Code2]],2)","v":"20"},"Industrie chimique",{"$f":"LEFT(Tableau1[[#This Row],[Code3UID]],4)","v":"20.4"},"Fabrication de savons et de produits d’entretien","20.42Y","Fabrication de parfums et de produits pour la toilette"]
["C","INDUSTRIE MANUFACTURIÈRE",{"$f":"LEFT(Tableau1[[#This Row],[Code2]],2)","v":"20"},"Industrie chimique",{"$f":"LEFT(Tableau1[[#This Row],[Code3UID]],4)","v":"20.5"},"Fabrication d’autres produits chimiques","20.51Y","Fabrication de biocarburants liquides"]
["C","INDUSTRIE MANUFACTURIÈRE",{"$f":"LEFT(Tableau1[[#This Row],[Code2]],2)","v":"20"},"Industrie chimique",{"$f":"LEFT(Tableau1[[#This Row],[Code3UID]],4)","v":"20.5"},"Fabrication d’autres produits chimiques","20.59Y","Fabrication d’autres produits chimiques n.c.a."]
["C","INDUSTRIE MANUFACTURIÈRE",{"$f":"LEFT(Tableau1[[#This Row],[Code2]],2)","v":"20"},"Industrie chimique",{"$f":"LEFT(Tableau1[[#This Row],[Code3UID]],4)","v":"20.6"},"Fabrication de fibres artificielles ou synthétiques","20.60Y","Fabrication de fibres artificielles ou synthétiques"]
["C","INDUSTRIE MANUFACTURIÈRE",{"$f":"LEFT(Tableau1[[#This Row],[Code2]],2)","v":"21"},"Industrie pharmaceutique",{"$f":"LEFT(Tableau1[[#This Row],[Code3UID]],4)","v":"21.1"},"Fabrication de produits pharmaceutiques de base","21.10Y","Fabrication de produits pharmaceutiques de base"]
["C","INDUSTRIE MANUFACTURIÈRE",{"$f":"LEFT(Tableau1[[#This Row],[Code2]],2)","v":"21"},"Industrie pharmaceutique",{"$f":"LEFT(Tableau1[[#This Row],[Code3UID]],4)","v":"21.2"},"Fabrication de préparations pharmaceutiques","21.20Y","Fabrication de préparations pharmaceutiques"]
["C","INDUSTRIE MANUFACTURIÈRE",{"$f":"LEFT(Tableau1[[#This Row],[Code2]],2)","v":"22"},"Fabrication de produits en caoutchouc et en plastique",{"$f":"LEFT(Tableau1[[#This Row],[Code3UID]],4)","v":"22.1"},"Fabrication de produits en caoutchouc","22.11Y","Fabrication et rechapage de pneus en caoutchouc et fabrication de chambres à air"]
["C","INDUSTRIE MANUFACTURIÈRE",{"$f":"LEFT(Tableau1[[#This Row],[Code2]],2)","v":"22"},"Fabrication de produits en caoutchouc et en plastique",{"$f":"LEFT(Tableau1[[#This Row],[Code3UID]],4)","v":"22.1"},"Fabrication de produits en caoutchouc","22.12Y","Fabrication d’autres articles en caoutchouc"]
["C","INDUSTRIE MANUFACTURIÈRE",{"$f":"LEFT(Tableau1[[#This Row],[Code2]],2)","v":"22"},"Fabrication de produits en caoutchouc et en plastique",{"$f":"LEFT(Tableau1[[#This Row],[Code3UID]],4)","v":"22.2"},"Fabrication de produits en plastique","22.21Y","Fabrication de plaques, feuilles, tubes et profilés en matières plastiques"]
["C","INDUSTRIE MANUFACTURIÈRE",{"$f":"LEFT(Tableau1[[#This Row],[Code2]],2)","v":"22"},"Fabrication de produits en caoutchouc et en plastique",{"$f":"LEFT(Tableau1[[#This Row],[Code3UID]],4)","v":"22.2"},"Fabrication de produits en plastique","22.22Y","Fabrication d’emballages en matières plastiques"]
["C","INDUSTRIE MANUFACTURIÈRE",{"$f":"LEFT(Tableau1[[#This Row],[Code2]],2)","v":"22"},"Fabrication de produits en caoutchouc et en plastique",{"$f":"LEFT(Tableau1[[#This Row],[Code3UID]],4)","v":"22.2"},"Fabrication de produits en plastique","22.23Y","Fabrication de portes et fenêtres en matières plastiques"]
["C","INDUSTRIE MANUFACTURIÈRE",{"$f":"LEFT(Tableau1[[#This Row],[Code2]],2)","v":"22"},"Fabrication de produits en caoutchouc et en plastique",{"$f":"LEFT(Tableau1[[#This Row],[Code3UID]],4)","v":"22.2"},"Fabrication de produits en plastique","22.24Y","Fabrication d’éléments en matières plastiques pour la construction"]
["C","INDUSTRIE MANUFACTURIÈRE",{"$f":"LEFT(Tableau1[[#This Row],[Code2]],2)","v":"22"},"Fabrication de produits en caoutchouc et en plastique",{"$f":"LEFT(Tableau1[[#This Row],[Code3UID]],4)","v":"22.2"},"Fabrication de produits en plastique","22.25Y","Façonnage et finition de produits en matières plastiques"]
["C","INDUSTRIE MANUFACTURIÈRE",{"$f":"LEFT(Tableau1[[#This Row],[Code2]],2)","v":"22"},"Fabrication de produits en caoutchouc et en plastique",{"$f":"LEFT(Tableau1[[#This Row],[Code3UID]],4)","v":"22.2"},"Fabrication de produits en plastique","22.26Y","Fabrication d’autres articles en matières plastiques"]
["C","INDUSTRIE MANUFACTURIÈRE",{"$f":"LEFT(Tableau1[[#This Row],[Code2]],2)","v":"23"},"Fabrication d’autres produits minéraux non métalliques",{"$f":"LEFT(Tableau1[[#This Row],[Code3UID]],4)","v":"23.1"},"Fabrication de verre et d’articles en verre","23.11Y","Fabrication de verre plat"]
["C","INDUSTRIE MANUFACTURIÈRE",{"$f":"LEFT(Tableau1[[#This Row],[Code2]],2)","v":"23"},"Fabrication d’autres produits minéraux non métalliques",{"$f":"LEFT(Tableau1[[#This Row],[Code3UID]],4)","v":"23.1"},"Fabrication de verre et d’articles en verre","23.12Y","Façonnage et transformation du verre plat"]
["C","INDUSTRIE MANUFACTURIÈRE",{"$f":"LEFT(Tableau1[[#This Row],[Code2]],2)","v":"23"},"Fabrication d’autres produits minéraux non métalliques",{"$f":"LEFT(Tableau1[[#This Row],[Code3UID]],4)","v":"23.1"},"Fabrication de verre et d’articles en verre","23.13Y","Fabrication de verre creux"]
["C","INDUSTRIE MANUFACTURIÈRE",{"$f":"LEFT(Tableau1[[#This Row],[Code2]],2)","v":"23"},"Fabrication d’autres produits minéraux non métalliques",{"$f":"LEFT(Tableau1[[#This Row],[Code3UID]],4)","v":"23.1"},"Fabrication de verre et d’articles en verre","23.14Y","Fabrication de fibres de verre"]
["C","INDUSTRIE MANUFACTURIÈRE",{"$f":"LEFT(Tableau1[[#This Row],[Code2]],2)","v":"23"},"Fabrication d’autres produits minéraux non métalliques",{"$f":"LEFT(Tableau1[[#This Row],[Code3UID]],4)","v":"23.1"},"Fabrication de verre et d’articles en verre","23.15Y","Fabrication et façonnage d’autres articles en verre, y compris verre technique"]
["C","INDUSTRIE MANUFACTURIÈRE",{"$f":"LEFT(Tableau1[[#This Row],[Code2]],2)","v":"23"},"Fabrication d’autres produits minéraux non métalliques",{"$f":"LEFT(Tableau1[[#This Row],[Code3UID]],4)","v":"23.2"},"Fabrication de produits réfractaires","23.20Y","Fabrication de produits réfractaires"]
["C","INDUSTRIE MANUFACTURIÈRE",{"$f":"LEFT(Tableau1[[#This Row],[Code2]],2)","v":"23"},"Fabrication d’autres produits minéraux non métalliques",{"$f":"LEFT(Tableau1[[#This Row],[Code3UID]],4)","v":"23.3"},"Fabrication de matériaux de construction en terre cuite","23.31Y","Fabrication de carreaux en céramique"]
["C","INDUSTRIE MANUFACTURIÈRE",{"$f":"LEFT(Tableau1[[#This Row],[Code2]],2)","v":"23"},"Fabrication d’autres produits minéraux non métalliques",{"$f":"LEFT(Tableau1[[#This Row],[Code3UID]],4)","v":"23.3"},"Fabrication de matériaux de construction en terre cuite","23.32Y","Fabrication de briques, tuiles et produits de construction, en terre cuite"]
["C","INDUSTRIE MANUFACTURIÈRE",{"$f":"LEFT(Tableau1[[#This Row],[Code2]],2)","v":"23"},"Fabrication d’autres produits minéraux non métalliques",{"$f":"LEFT(Tableau1[[#This Row],[Code3UID]],4)","v":"23.4"},"Fabrication d’autres produits en céramique et en porcelaine","23.41Y","Fabrication d’articles céramiques à usage domestique ou ornemental"]
["C","INDUSTRIE MANUFACTURIÈRE",{"$f":"LEFT(Tableau1[[#This Row],[Code2]],2)","v":"23"},"Fabrication d’autres produits minéraux non métalliques",{"$f":"LEFT(Tableau1[[#This Row],[Code3UID]],4)","v":"23.4"},"Fabrication d’autres produits en céramique et en porcelaine","23.42Y","Fabrication d’appareils sanitaires en céramique"]
["C","INDUSTRIE MANUFACTURIÈRE",{"$f":"LEFT(Tableau1[[#This Row],[Code2]],2)","v":"23"},"Fabrication d’autres produits minéraux non métalliques",{"$f":"LEFT(Tableau1[[#This Row],[Code3UID]],4)","v":"23.4"},"Fabrication d’autres produits en céramique et en porcelaine","23.43Y","Fabrication d’isolateurs et pièces isolantes en céramique"]
["C","INDUSTRIE MANUFACTURIÈRE",{"$f":"LEFT(Tableau1[[#This Row],[Code2]],2)","v":"23"},"Fabrication d’autres produits minéraux non métalliques",{"$f":"LEFT(Tableau1[[#This Row],[Code3UID]],4)","v":"23.4"},"Fabrication d’autres produits en céramique et en porcelaine","23.44Y","Fabrication d’autres produits céramiques à usage technique"]
["C","INDUSTRIE MANUFACTURIÈRE",{"$f":"LEFT(Tableau1[[#This Row],[Code2]],2)","v":"23"},"Fabrication d’autres produits minéraux non métalliques",{"$f":"LEFT(Tableau1[[#This Row],[Code3UID]],4)","v":"23.4"},"Fabrication d’autres produits en céramique et en porcelaine","23.45Y","Fabrication d’autres produits céramiques"]
["C","INDUSTRIE MANUFACTURIÈRE",{"$f":"LEFT(Tableau1[[#This Row],[Code2]],2)","v":"23"},"Fabrication d’autres produits minéraux non métalliques",{"$f":"LEFT(Tableau1[[#This Row],[Code3UID]],4)","v":"23.5"},"Fabrication de ciment, chaux et plâtre","23.51Y","Fabrication de ciment"]
["C","INDUSTRIE MANUFACTURIÈRE",{"$f":"LEFT(Tableau1[[#This Row],[Code2]],2)","v":"23"},"Fabrication d’autres produits minéraux non métalliques",{"$f":"LEFT(Tableau1[[#This Row],[Code3UID]],4)","v":"23.5"},"Fabrication de ciment, chaux et plâtre","23.52Y","Fabrication de chaux et plâtre"]
["C","INDUSTRIE MANUFACTURIÈRE",{"$f":"LEFT(Tableau1[[#This Row],[Code2]],2)","v":"23"},"Fabrication d’autres produits minéraux non métalliques",{"$f":"LEFT(Tableau1[[#This Row],[Code3UID]],4)","v":"23.6"},"Fabrication d’ouvrages en béton, en ciment ou en plâtre","23.61Y","Fabrication d’éléments en béton pour la construction"]
["C","INDUSTRIE MANUFACTURIÈRE",{"$f":"LEFT(Tableau1[[#This Row],[Code2]],2)","v":"23"},"Fabrication d’autres produits minéraux non métalliques",{"$f":"LEFT(Tableau1[[#This Row],[Code3UID]],4)","v":"23.6"},"Fabrication d’ouvrages en béton, en ciment ou en plâtre","23.62Y","Fabrication d’éléments en plâtre pour la construction"]
["C","INDUSTRIE MANUFACTURIÈRE",{"$f":"LEFT(Tableau1[[#This Row],[Code2]],2)","v":"23"},"Fabrication d’autres produits minéraux non métalliques",{"$f":"LEFT(Tableau1[[#This Row],[Code3UID]],4)","v":"23.6"},"Fabrication d’ouvrages en béton, en ciment ou en plâtre","23.63Y","Fabrication de béton prêt à l’emploi"]
["C","INDUSTRIE MANUFACTURIÈRE",{"$f":"LEFT(Tableau1[[#This Row],[Code2]],2)","v":"23"},"Fabrication d’autres produits minéraux non métalliques",{"$f":"LEFT(Tableau1[[#This Row],[Code3UID]],4)","v":"23.6"},"Fabrication d’ouvrages en béton, en ciment ou en plâtre","23.64Y","Fabrication de mortiers et de bétons secs"]
["C","INDUSTRIE MANUFACTURIÈRE",{"$f":"LEFT(Tableau1[[#This Row],[Code2]],2)","v":"23"},"Fabrication d’autres produits minéraux non métalliques",{"$f":"LEFT(Tableau1[[#This Row],[Code3UID]],4)","v":"23.6"},"Fabrication d’ouvrages en béton, en ciment ou en plâtre","23.65Y","Fabrication d’ouvrages en fibre-ciment"]
["C","INDUSTRIE MANUFACTURIÈRE",{"$f":"LEFT(Tableau1[[#This Row],[Code2]],2)","v":"23"},"Fabrication d’autres produits minéraux non métalliques",{"$f":"LEFT(Tableau1[[#This Row],[Code3UID]],4)","v":"23.6"},"Fabrication d’ouvrages en béton, en ciment ou en plâtre","23.66Y","Fabrication d’autres ouvrages en béton, en ciment ou en plâtre"]
["C","INDUSTRIE MANUFACTURIÈRE",{"$f":"LEFT(Tableau1[[#This Row],[Code2]],2)","v":"23"},"Fabrication d’autres produits minéraux non métalliques",{"$f":"LEFT(Tableau1[[#This Row],[Code3UID]],4)","v":"23.7"},"Taille, façonnage et finissage de pierres","23.70Y","Taille, façonnage et finissage de pierres"]
["C","INDUSTRIE MANUFACTURIÈRE",{"$f":"LEFT(Tableau1[[#This Row],[Code2]],2)","v":"23"},"Fabrication d’autres produits minéraux non métalliques",{"$f":"LEFT(Tableau1[[#This Row],[Code3UID]],4)","v":"23.9"},"Fabrication de produits abrasifs et de produits minéraux non métalliques n.c.a.","23.91Y","Fabrication de produits abrasifs"]
["C","INDUSTRIE MANUFACTURIÈRE",{"$f":"LEFT(Tableau1[[#This Row],[Code2]],2)","v":"23"},"Fabrication d’autres produits minéraux non métalliques",{"$f":"LEFT(Tableau1[[#This Row],[Code3UID]],4)","v":"23.9"},"Fabrication de produits abrasifs et de produits minéraux non métalliques n.c.a.","23.99Y","Fabrication d’autres produits minéraux non métalliques n.c.a."]
["C","INDUSTRIE MANUFACTURIÈRE",{"$f":"LEFT(Tableau1[[#This Row],[Code2]],2)","v":"24"},"Métallurgie",{"$f":"LEFT(Tableau1[[#This Row],[Code3UID]],4)","v":"24.1"},"Sidérurgie","24.10Y","Sidérurgie"]
["C","INDUSTRIE MANUFACTURIÈRE",{"$f":"LEFT(Tableau1[[#This Row],[Code2]],2)","v":"24"},"Métallurgie",{"$f":"LEFT(Tableau1[[#This Row],[Code3UID]],4)","v":"24.2"},"Fabrication de tubes, tuyaux, profilés creux et accessoires correspondants en acier","24.20Y","Fabrication de tubes, tuyaux, profilés creux et accessoires correspondants en acier"]
["C","INDUSTRIE MANUFACTURIÈRE",{"$f":"LEFT(Tableau1[[#This Row],[Code2]],2)","v":"24"},"Métallurgie",{"$f":"LEFT(Tableau1[[#This Row],[Code3UID]],4)","v":"24.3"},"Fabrication d’autres produits de première transformation de l’acier","24.31Y","Étirage à froid de barres"]
["C","INDUSTRIE MANUFACTURIÈRE",{"$f":"LEFT(Tableau1[[#This Row],[Code2]],2)","v":"24"},"Métallurgie",{"$f":"LEFT(Tableau1[[#This Row],[Code3UID]],4)","v":"24.3"},"Fabrication d’autres produits de première transformation de l’acier","24.32Y","Laminage à froid de feuillards"]
["C","INDUSTRIE MANUFACTURIÈRE",{"$f":"LEFT(Tableau1[[#This Row],[Code2]],2)","v":"24"},"Métallurgie",{"$f":"LEFT(Tableau1[[#This Row],[Code3UID]],4)","v":"24.3"},"Fabrication d’autres produits de première transformation de l’acier","24.33Y","Profilage à froid par formage ou pliage"]
["C","INDUSTRIE MANUFACTURIÈRE",{"$f":"LEFT(Tableau1[[#This Row],[Code2]],2)","v":"24"},"Métallurgie",{"$f":"LEFT(Tableau1[[#This Row],[Code3UID]],4)","v":"24.3"},"Fabrication d’autres produits de première transformation de l’acier","24.34Y","Tréfilage à froid"]
["C","INDUSTRIE MANUFACTURIÈRE",{"$f":"LEFT(Tableau1[[#This Row],[Code2]],2)","v":"24"},"Métallurgie",{"$f":"LEFT(Tableau1[[#This Row],[Code3UID]],4)","v":"24.4"},"Production de métaux précieux et d’autres métaux non ferreux","24.41Y","Production de métaux précieux"]
["C","INDUSTRIE MANUFACTURIÈRE",{"$f":"LEFT(Tableau1[[#This Row],[Code2]],2)","v":"24"},"Métallurgie",{"$f":"LEFT(Tableau1[[#This Row],[Code3UID]],4)","v":"24.4"},"Production de métaux précieux et d’autres métaux non ferreux","24.42Y","Métallurgie de l’aluminium"]
["C","INDUSTRIE MANUFACTURIÈRE",{"$f":"LEFT(Tableau1[[#This Row],[Code2]],2)","v":"24"},"Métallurgie",{"$f":"LEFT(Tableau1[[#This Row],[Code3UID]],4)","v":"24.4"},"Production de métaux précieux et d’autres métaux non ferreux","24.43Y","Métallurgie du plomb, du zinc ou de l’étain"]
["C","INDUSTRIE MANUFACTURIÈRE",{"$f":"LEFT(Tableau1[[#This Row],[Code2]],2)","v":"24"},"Métallurgie",{"$f":"LEFT(Tableau1[[#This Row],[Code3UID]],4)","v":"24.4"},"Production de métaux précieux et d’autres métaux non ferreux","24.44Y","Métallurgie du cuivre"]
["C","INDUSTRIE MANUFACTURIÈRE",{"$f":"LEFT(Tableau1[[#This Row],[Code2]],2)","v":"24"},"Métallurgie",{"$f":"LEFT(Tableau1[[#This Row],[Code3UID]],4)","v":"24.4"},"Production de métaux précieux et d’autres métaux non ferreux","24.45Y","Métallurgie des autres métaux non ferreux"]
["C","INDUSTRIE MANUFACTURIÈRE",{"$f":"LEFT(Tableau1[[#This Row],[Code2]],2)","v":"24"},"Métallurgie",{"$f":"LEFT(Tableau1[[#This Row],[Code3UID]],4)","v":"24.4"},"Production de métaux précieux et d’autres métaux non ferreux","24.46Y","Élaboration et transformation de matières nucléaires"]
["C","INDUSTRIE MANUFACTURIÈRE",{"$f":"LEFT(Tableau1[[#This Row],[Code2]],2)","v":"24"},"Métallurgie",{"$f":"LEFT(Tableau1[[#This Row],[Code3UID]],4)","v":"24.5"},"Fonderie","24.51Y","Fonderie de fonte"]
["C","INDUSTRIE MANUFACTURIÈRE",{"$f":"LEFT(Tableau1[[#This Row],[Code2]],2)","v":"24"},"Métallurgie",{"$f":"LEFT(Tableau1[[#This Row],[Code3UID]],4)","v":"24.5"},"Fonderie","24.52Y","Fonderie d’acier"]
["C","INDUSTRIE MANUFACTURIÈRE",{"$f":"LEFT(Tableau1[[#This Row],[Code2]],2)","v":"24"},"Métallurgie",{"$f":"LEFT(Tableau1[[#This Row],[Code3UID]],4)","v":"24.5"},"Fonderie","24.53Y","Fonderie de métaux légers"]
["C","INDUSTRIE MANUFACTURIÈRE",{"$f":"LEFT(Tableau1[[#This Row],[Code2]],2)","v":"24"},"Métallurgie",{"$f":"LEFT(Tableau1[[#This Row],[Code3UID]],4)","v":"24.5"},"Fonderie","24.54Y","Fonderie d’autres métaux non ferreux"]
["C","INDUSTRIE MANUFACTURIÈRE",{"$f":"LEFT(Tableau1[[#This Row],[Code2]],2)","v":"25"},"Fabrication de produits métalliques, à l’exception des machines et des équipements",{"$f":"LEFT(Tableau1[[#This Row],[Code3UID]],4)","v":"25.1"},"Fabrication d’éléments en métal pour la construction","25.11Y","Fabrication de structures métalliques et de parties de structures"]
["C","INDUSTRIE MANUFACTURIÈRE",{"$f":"LEFT(Tableau1[[#This Row],[Code2]],2)","v":"25"},"Fabrication de produits métalliques, à l’exception des machines et des équipements",{"$f":"LEFT(Tableau1[[#This Row],[Code3UID]],4)","v":"25.1"},"Fabrication d’éléments en métal pour la construction","25.12Y","Fabrication de portes et fenêtres en métal"]
["C","INDUSTRIE MANUFACTURIÈRE",{"$f":"LEFT(Tableau1[[#This Row],[Code2]],2)","v":"25"},"Fabrication de produits métalliques, à l’exception des machines et des équipements",{"$f":"LEFT(Tableau1[[#This Row],[Code3UID]],4)","v":"25.2"},"Fabrication de réservoirs, citernes et conteneurs métalliques","25.21Y","Fabrication de radiateurs et de chaudières pour le chauffage central"]
["C","INDUSTRIE MANUFACTURIÈRE",{"$f":"LEFT(Tableau1[[#This Row],[Code2]],2)","v":"25"},"Fabrication de produits métalliques, à l’exception des machines et des équipements",{"$f":"LEFT(Tableau1[[#This Row],[Code3UID]],4)","v":"25.2"},"Fabrication de réservoirs, citernes et conteneurs métalliques","25.22Y","Fabrication d’autres réservoirs, citernes et conteneurs métalliques"]
["C","INDUSTRIE MANUFACTURIÈRE",{"$f":"LEFT(Tableau1[[#This Row],[Code2]],2)","v":"25"},"Fabrication de produits métalliques, à l’exception des machines et des équipements",{"$f":"LEFT(Tableau1[[#This Row],[Code3UID]],4)","v":"25.3"},"Fabrication d’armes et de munitions","25.30Y","Fabrication d’armes et de munitions"]
["C","INDUSTRIE MANUFACTURIÈRE",{"$f":"LEFT(Tableau1[[#This Row],[Code2]],2)","v":"25"},"Fabrication de produits métalliques, à l’exception des machines et des équipements",{"$f":"LEFT(Tableau1[[#This Row],[Code3UID]],4)","v":"25.4"},"Forgeage et façonnage de métal ; métallurgie des poudres","25.40Y","Forgeage et façonnage de métal ; métallurgie des poudres"]
["C","INDUSTRIE MANUFACTURIÈRE",{"$f":"LEFT(Tableau1[[#This Row],[Code2]],2)","v":"25"},"Fabrication de produits métalliques, à l’exception des machines et des équipements",{"$f":"LEFT(Tableau1[[#This Row],[Code3UID]],4)","v":"25.5"},"Traitement et revêtement des métaux ; usinage","25.51Y","Revêtement des métaux"]
["C","INDUSTRIE MANUFACTURIÈRE",{"$f":"LEFT(Tableau1[[#This Row],[Code2]],2)","v":"25"},"Fabrication de produits métalliques, à l’exception des machines et des équipements",{"$f":"LEFT(Tableau1[[#This Row],[Code3UID]],4)","v":"25.5"},"Traitement et revêtement des métaux ; usinage","25.52Y","Traitement thermique des métaux"]
["C","INDUSTRIE MANUFACTURIÈRE",{"$f":"LEFT(Tableau1[[#This Row],[Code2]],2)","v":"25"},"Fabrication de produits métalliques, à l’exception des machines et des équipements",{"$f":"LEFT(Tableau1[[#This Row],[Code3UID]],4)","v":"25.5"},"Traitement et revêtement des métaux ; usinage","25.53Y","Usinage des métaux"]
["C","INDUSTRIE MANUFACTURIÈRE",{"$f":"LEFT(Tableau1[[#This Row],[Code2]],2)","v":"25"},"Fabrication de produits métalliques, à l’exception des machines et des équipements",{"$f":"LEFT(Tableau1[[#This Row],[Code3UID]],4)","v":"25.6"},"Fabrication de coutellerie, d’outillage et de quincaillerie","25.61Y","Fabrication de coutellerie"]
["C","INDUSTRIE MANUFACTURIÈRE",{"$f":"LEFT(Tableau1[[#This Row],[Code2]],2)","v":"25"},"Fabrication de produits métalliques, à l’exception des machines et des équipements",{"$f":"LEFT(Tableau1[[#This Row],[Code3UID]],4)","v":"25.6"},"Fabrication de coutellerie, d’outillage et de quincaillerie","25.62Y","Fabrication de serrures et de ferrures"]
["C","INDUSTRIE MANUFACTURIÈRE",{"$f":"LEFT(Tableau1[[#This Row],[Code2]],2)","v":"25"},"Fabrication de produits métalliques, à l’exception des machines et des équipements",{"$f":"LEFT(Tableau1[[#This Row],[Code3UID]],4)","v":"25.6"},"Fabrication de coutellerie, d’outillage et de quincaillerie","25.63Y","Fabrication d’outillage"]
["C","INDUSTRIE MANUFACTURIÈRE",{"$f":"LEFT(Tableau1[[#This Row],[Code2]],2)","v":"25"},"Fabrication de produits métalliques, à l’exception des machines et des équipements",{"$f":"LEFT(Tableau1[[#This Row],[Code3UID]],4)","v":"25.9"},"Fabrication d’autres ouvrages en métaux","25.91Y","Fabrication de fûts et emballages métalliques similaires"]
["C","INDUSTRIE MANUFACTURIÈRE",{"$f":"LEFT(Tableau1[[#This Row],[Code2]],2)","v":"25"},"Fabrication de produits métalliques, à l’exception des machines et des équipements",{"$f":"LEFT(Tableau1[[#This Row],[Code3UID]],4)","v":"25.9"},"Fabrication d’autres ouvrages en métaux","25.92Y","Fabrication d’emballages métalliques légers"]
["C","INDUSTRIE MANUFACTURIÈRE",{"$f":"LEFT(Tableau1[[#This Row],[Code2]],2)","v":"25"},"Fabrication de produits métalliques, à l’exception des machines et des équipements",{"$f":"LEFT(Tableau1[[#This Row],[Code3UID]],4)","v":"25.9"},"Fabrication d’autres ouvrages en métaux","25.93Y","Fabrication d’articles en fils métalliques, de chaînes et de ressorts"]
["C","INDUSTRIE MANUFACTURIÈRE",{"$f":"LEFT(Tableau1[[#This Row],[Code2]],2)","v":"25"},"Fabrication de produits métalliques, à l’exception des machines et des équipements",{"$f":"LEFT(Tableau1[[#This Row],[Code3UID]],4)","v":"25.9"},"Fabrication d’autres ouvrages en métaux","25.94Y","Fabrication de vis et de boulons"]
["C","INDUSTRIE MANUFACTURIÈRE",{"$f":"LEFT(Tableau1[[#This Row],[Code2]],2)","v":"25"},"Fabrication de produits métalliques, à l’exception des machines et des équipements",{"$f":"LEFT(Tableau1[[#This Row],[Code3UID]],4)","v":"25.9"},"Fabrication d’autres ouvrages en métaux","25.99Y","Fabrication d’autres produits métalliques n.c.a."]
["C","INDUSTRIE MANUFACTURIÈRE",{"$f":"LEFT(Tableau1[[#This Row],[Code2]],2)","v":"26"},"Fabrication de produits informatiques, électroniques et optiques",{"$f":"LEFT(Tableau1[[#This Row],[Code3UID]],4)","v":"26.1"},"Fabrication de composants et cartes électroniques","26.11Y","Fabrication de composants électroniques"]
["C","INDUSTRIE MANUFACTURIÈRE",{"$f":"LEFT(Tableau1[[#This Row],[Code2]],2)","v":"26"},"Fabrication de produits informatiques, électroniques et optiques",{"$f":"LEFT(Tableau1[[#This Row],[Code3UID]],4)","v":"26.1"},"Fabrication de composants et cartes électroniques","26.12Y","Fabrication de cartes électroniques assemblées"]
["C","INDUSTRIE MANUFACTURIÈRE",{"$f":"LEFT(Tableau1[[#This Row],[Code2]],2)","v":"26"},"Fabrication de produits informatiques, électroniques et optiques",{"$f":"LEFT(Tableau1[[#This Row],[Code3UID]],4)","v":"26.2"},"Fabrication d’ordinateurs et d’équipements périphériques","26.20Y","Fabrication d’ordinateurs et d’équipements périphériques"]
["C","INDUSTRIE MANUFACTURIÈRE",{"$f":"LEFT(Tableau1[[#This Row],[Code2]],2)","v":"26"},"Fabrication de produits informatiques, électroniques et optiques",{"$f":"LEFT(Tableau1[[#This Row],[Code3UID]],4)","v":"26.3"},"Fabrication d’ordinateurs et d’équipements périphériques","26.30Y","Fabrication d’équipements de communication"]
["C","INDUSTRIE MANUFACTURIÈRE",{"$f":"LEFT(Tableau1[[#This Row],[Code2]],2)","v":"26"},"Fabrication de produits informatiques, électroniques et optiques",{"$f":"LEFT(Tableau1[[#This Row],[Code3UID]],4)","v":"26.4"},"Fabrication de produits électroniques grand public","26.40Y","Fabrication de produits électroniques grand public"]
["C","INDUSTRIE MANUFACTURIÈRE",{"$f":"LEFT(Tableau1[[#This Row],[Code2]],2)","v":"26"},"Fabrication de produits informatiques, électroniques et optiques",{"$f":"LEFT(Tableau1[[#This Row],[Code3UID]],4)","v":"26.5"},"Fabrication d’instruments de mesure et d’essai ; horlogerie","26.51Y","Fabrication d’instruments et d’appareils de mesure, d’essai et de navigation"]
["C","INDUSTRIE MANUFACTURIÈRE",{"$f":"LEFT(Tableau1[[#This Row],[Code2]],2)","v":"26"},"Fabrication de produits informatiques, électroniques et optiques",{"$f":"LEFT(Tableau1[[#This Row],[Code3UID]],4)","v":"26.5"},"Fabrication d’instruments de mesure et d’essai ; horlogerie","26.52Y","Horlogerie"]
["C","INDUSTRIE MANUFACTURIÈRE",{"$f":"LEFT(Tableau1[[#This Row],[Code2]],2)","v":"26"},"Fabrication de produits informatiques, électroniques et optiques",{"$f":"LEFT(Tableau1[[#This Row],[Code3UID]],4)","v":"26.6"},"Fabrication d’équipements d’irradiation médicale, d’équipements électromédicaux et électrothérapeutiques","26.60Y","Fabrication d’équipements d’irradiation médicale, d’équipements électromédicaux et électrothérapeutiques"]
["C","INDUSTRIE MANUFACTURIÈRE",{"$f":"LEFT(Tableau1[[#This Row],[Code2]],2)","v":"26"},"Fabrication de produits informatiques, électroniques et optiques",{"$f":"LEFT(Tableau1[[#This Row],[Code3UID]],4)","v":"26.7"},"Fabrication de matériels optique et photographique et de supports magnétiques et optiques","26.70Y","Fabrication de matériels optique et photographique et de supports magnétiques et optiques"]
["C","INDUSTRIE MANUFACTURIÈRE",{"$f":"LEFT(Tableau1[[#This Row],[Code2]],2)","v":"27"},"Fabrication d’équipements électriques",{"$f":"LEFT(Tableau1[[#This Row],[Code3UID]],4)","v":"27.1"},"Fabrication de moteurs, génératrices et transformateurs électriques et de matériel de distribution et de commande électrique","27.11Y","Fabrication de moteurs, génératrices et transformateurs électriques"]
["C","INDUSTRIE MANUFACTURIÈRE",{"$f":"LEFT(Tableau1[[#This Row],[Code2]],2)","v":"27"},"Fabrication d’équipements électriques",{"$f":"LEFT(Tableau1[[#This Row],[Code3UID]],4)","v":"27.1"},"Fabrication de moteurs, génératrices et transformateurs électriques et de matériel de distribution et de commande électrique","27.12Y","Fabrication de matériel de distribution et de commande électrique"]
["C","INDUSTRIE MANUFACTURIÈRE",{"$f":"LEFT(Tableau1[[#This Row],[Code2]],2)","v":"27"},"Fabrication d’équipements électriques",{"$f":"LEFT(Tableau1[[#This Row],[Code3UID]],4)","v":"27.2"},"Fabrication de piles et d’accumulateurs électriques","27.20Y","Fabrication de piles et d’accumulateurs électriques"]
["C","INDUSTRIE MANUFACTURIÈRE",{"$f":"LEFT(Tableau1[[#This Row],[Code2]],2)","v":"27"},"Fabrication d’équipements électriques",{"$f":"LEFT(Tableau1[[#This Row],[Code3UID]],4)","v":"27.3"},"Fabrication de fils et câbles et de matériel d’installation électrique","27.31Y","Fabrication de câbles de fibres optiques"]
["C","INDUSTRIE MANUFACTURIÈRE",{"$f":"LEFT(Tableau1[[#This Row],[Code2]],2)","v":"27"},"Fabrication d’équipements électriques",{"$f":"LEFT(Tableau1[[#This Row],[Code3UID]],4)","v":"27.3"},"Fabrication de fils et câbles et de matériel d’installation électrique","27.32Y","Fabrication d’autres fils et câbles électroniques ou électriques"]
["C","INDUSTRIE MANUFACTURIÈRE",{"$f":"LEFT(Tableau1[[#This Row],[Code2]],2)","v":"27"},"Fabrication d’équipements électriques",{"$f":"LEFT(Tableau1[[#This Row],[Code3UID]],4)","v":"27.3"},"Fabrication de fils et câbles et de matériel d’installation électrique","27.33Y","Fabrication de matériel d’installation électrique"]
["C","INDUSTRIE MANUFACTURIÈRE",{"$f":"LEFT(Tableau1[[#This Row],[Code2]],2)","v":"27"},"Fabrication d’équipements électriques",{"$f":"LEFT(Tableau1[[#This Row],[Code3UID]],4)","v":"27.4"},"Fabrication d’appareils d’éclairage","27.40Y","Fabrication d’appareils d’éclairage"]
["C","INDUSTRIE MANUFACTURIÈRE",{"$f":"LEFT(Tableau1[[#This Row],[Code2]],2)","v":"27"},"Fabrication d’équipements électriques",{"$f":"LEFT(Tableau1[[#This Row],[Code3UID]],4)","v":"27.5"},"Fabrication d’appareils ménagers","27.51Y","Fabrication d’appareils électroménagers"]
["C","INDUSTRIE MANUFACTURIÈRE",{"$f":"LEFT(Tableau1[[#This Row],[Code2]],2)","v":"27"},"Fabrication d’équipements électriques",{"$f":"LEFT(Tableau1[[#This Row],[Code3UID]],4)","v":"27.5"},"Fabrication d’appareils ménagers","27.52Y","Fabrication d’appareils ménagers non électriques"]
["C","INDUSTRIE MANUFACTURIÈRE",{"$f":"LEFT(Tableau1[[#This Row],[Code2]],2)","v":"27"},"Fabrication d’équipements électriques",{"$f":"LEFT(Tableau1[[#This Row],[Code3UID]],4)","v":"27.9"},"Fabrication d’autres matériels électriques","27.90Y","Fabrication d’autres matériels électriques"]
["C","INDUSTRIE MANUFACTURIÈRE",{"$f":"LEFT(Tableau1[[#This Row],[Code2]],2)","v":"28"},"Fabrication de machines et équipements n.c.a.",{"$f":"LEFT(Tableau1[[#This Row],[Code3UID]],4)","v":"28.1"},"Fabrication de machines d’usage général","28.11Y","Fabrication de moteurs et turbines, à l’exception des moteurs d’avions et de véhicules"]
["C","INDUSTRIE MANUFACTURIÈRE",{"$f":"LEFT(Tableau1[[#This Row],[Code2]],2)","v":"28"},"Fabrication de machines et équipements n.c.a.",{"$f":"LEFT(Tableau1[[#This Row],[Code3UID]],4)","v":"28.1"},"Fabrication de machines d’usage général","28.12Y","Fabrication d’équipements de transmission de puissance hydrauliques et pneumatiques"]
["C","INDUSTRIE MANUFACTURIÈRE",{"$f":"LEFT(Tableau1[[#This Row],[Code2]],2)","v":"28"},"Fabrication de machines et équipements n.c.a.",{"$f":"LEFT(Tableau1[[#This Row],[Code3UID]],4)","v":"28.1"},"Fabrication de machines d’usage général","28.13G","Fabrication d'autres pompes"]
["C","INDUSTRIE MANUFACTURIÈRE",{"$f":"LEFT(Tableau1[[#This Row],[Code2]],2)","v":"28"},"Fabrication de machines et équipements n.c.a.",{"$f":"LEFT(Tableau1[[#This Row],[Code3UID]],4)","v":"28.1"},"Fabrication de machines d’usage général","28.13H","Fabrication d'autres compresseurs"]
["C","INDUSTRIE MANUFACTURIÈRE",{"$f":"LEFT(Tableau1[[#This Row],[Code2]],2)","v":"28"},"Fabrication de machines et équipements n.c.a.",{"$f":"LEFT(Tableau1[[#This Row],[Code3UID]],4)","v":"28.1"},"Fabrication de machines d’usage général","28.14Y","Fabrication d’autres articles de robinetterie"]
["C","INDUSTRIE MANUFACTURIÈRE",{"$f":"LEFT(Tableau1[[#This Row],[Code2]],2)","v":"28"},"Fabrication de machines et équipements n.c.a.",{"$f":"LEFT(Tableau1[[#This Row],[Code3UID]],4)","v":"28.1"},"Fabrication de machines d’usage général","28.15Y","Fabrication de roulements et de transmissions mécaniques"]
["C","INDUSTRIE MANUFACTURIÈRE",{"$f":"LEFT(Tableau1[[#This Row],[Code2]],2)","v":"28"},"Fabrication de machines et équipements n.c.a.",{"$f":"LEFT(Tableau1[[#This Row],[Code3UID]],4)","v":"28.2"},"Fabrication d’autres machines d’usage général","28.21Y","Fabrication de fours et brûleurs et d’équipements fixes de chauffage domestique"]
["C","INDUSTRIE MANUFACTURIÈRE",{"$f":"LEFT(Tableau1[[#This Row],[Code2]],2)","v":"28"},"Fabrication de machines et équipements n.c.a.",{"$f":"LEFT(Tableau1[[#This Row],[Code3UID]],4)","v":"28.2"},"Fabrication d’autres machines d’usage général","28.22Y","Fabrication de matériel de levage et de manutention"]
["C","INDUSTRIE MANUFACTURIÈRE",{"$f":"LEFT(Tableau1[[#This Row],[Code2]],2)","v":"28"},"Fabrication de machines et équipements n.c.a.",{"$f":"LEFT(Tableau1[[#This Row],[Code3UID]],4)","v":"28.2"},"Fabrication d’autres machines d’usage général","28.23Y","Fabrication de machines et d’équipements de bureau (à l’exception des ordinateurs et équipements périphériques)"]
["C","INDUSTRIE MANUFACTURIÈRE",{"$f":"LEFT(Tableau1[[#This Row],[Code2]],2)","v":"28"},"Fabrication de machines et équipements n.c.a.",{"$f":"LEFT(Tableau1[[#This Row],[Code3UID]],4)","v":"28.2"},"Fabrication d’autres machines d’usage général","28.24Y","Fabrication d’outillage portatif à moteur incorporé"]
["C","INDUSTRIE MANUFACTURIÈRE",{"$f":"LEFT(Tableau1[[#This Row],[Code2]],2)","v":"28"},"Fabrication de machines et équipements n.c.a.",{"$f":"LEFT(Tableau1[[#This Row],[Code3UID]],4)","v":"28.2"},"Fabrication d’autres machines d’usage général","28.25Y","Fabrication d’équipements aérauliques et frigorifiques industriels"]
["C","INDUSTRIE MANUFACTURIÈRE",{"$f":"LEFT(Tableau1[[#This Row],[Code2]],2)","v":"28"},"Fabrication de machines et équipements n.c.a.",{"$f":"LEFT(Tableau1[[#This Row],[Code3UID]],4)","v":"28.2"},"Fabrication d’autres machines d’usage général","28.29Y","Fabrication de machines diverses d’usage général"]
["C","INDUSTRIE MANUFACTURIÈRE",{"$f":"LEFT(Tableau1[[#This Row],[Code2]],2)","v":"28"},"Fabrication de machines et équipements n.c.a.",{"$f":"LEFT(Tableau1[[#This Row],[Code3UID]],4)","v":"28.3"},"Fabrication de machines agricoles et forestières","28.30Y","Fabrication de machines agricoles et forestières"]
["C","INDUSTRIE MANUFACTURIÈRE",{"$f":"LEFT(Tableau1[[#This Row],[Code2]],2)","v":"28"},"Fabrication de machines et équipements n.c.a.",{"$f":"LEFT(Tableau1[[#This Row],[Code3UID]],4)","v":"28.4"},"Fabrication de machines de formage des métaux et de machines-outils","28.41Y","Fabrication de machines-outils pour le formage et le travail des métaux"]
["C","INDUSTRIE MANUFACTURIÈRE",{"$f":"LEFT(Tableau1[[#This Row],[Code2]],2)","v":"28"},"Fabrication de machines et équipements n.c.a.",{"$f":"LEFT(Tableau1[[#This Row],[Code3UID]],4)","v":"28.4"},"Fabrication de machines de formage des métaux et de machines-outils","28.42Y","Fabrication d’autres machines-outils"]
["C","INDUSTRIE MANUFACTURIÈRE",{"$f":"LEFT(Tableau1[[#This Row],[Code2]],2)","v":"28"},"Fabrication de machines et équipements n.c.a.",{"$f":"LEFT(Tableau1[[#This Row],[Code3UID]],4)","v":"28.9"},"Fabrication d’autres machines d’usage spécifique","28.91Y","Fabrication de machines pour la métallurgie"]
["C","INDUSTRIE MANUFACTURIÈRE",{"$f":"LEFT(Tableau1[[#This Row],[Code2]],2)","v":"28"},"Fabrication de machines et équipements n.c.a.",{"$f":"LEFT(Tableau1[[#This Row],[Code3UID]],4)","v":"28.9"},"Fabrication d’autres machines d’usage spécifique","28.92Y","Fabrication de machines pour l’extraction ou la construction"]
["C","INDUSTRIE MANUFACTURIÈRE",{"$f":"LEFT(Tableau1[[#This Row],[Code2]],2)","v":"28"},"Fabrication de machines et équipements n.c.a.",{"$f":"LEFT(Tableau1[[#This Row],[Code3UID]],4)","v":"28.9"},"Fabrication d’autres machines d’usage spécifique","28.93Y","Fabrication de machines pour l’industrie agro-alimentaire"]
["C","INDUSTRIE MANUFACTURIÈRE",{"$f":"LEFT(Tableau1[[#This Row],[Code2]],2)","v":"28"},"Fabrication de machines et équipements n.c.a.",{"$f":"LEFT(Tableau1[[#This Row],[Code3UID]],4)","v":"28.9"},"Fabrication d’autres machines d’usage spécifique","28.94Y","Fabrication de machines pour les industries textiles et du cuir"]
["C","INDUSTRIE MANUFACTURIÈRE",{"$f":"LEFT(Tableau1[[#This Row],[Code2]],2)","v":"28"},"Fabrication de machines et équipements n.c.a.",{"$f":"LEFT(Tableau1[[#This Row],[Code3UID]],4)","v":"28.9"},"Fabrication d’autres machines d’usage spécifique","28.95Y","Fabrication de machines pour les industries du papier et du carton"]
["C","INDUSTRIE MANUFACTURIÈRE",{"$f":"LEFT(Tableau1[[#This Row],[Code2]],2)","v":"28"},"Fabrication de machines et équipements n.c.a.",{"$f":"LEFT(Tableau1[[#This Row],[Code3UID]],4)","v":"28.9"},"Fabrication d’autres machines d’usage spécifique","28.96Y","Fabrication de machines pour le travail du caoutchouc ou des plastiques"]
["C","INDUSTRIE MANUFACTURIÈRE",{"$f":"LEFT(Tableau1[[#This Row],[Code2]],2)","v":"28"},"Fabrication de machines et équipements n.c.a.",{"$f":"LEFT(Tableau1[[#This Row],[Code3UID]],4)","v":"28.9"},"Fabrication d’autres machines d’usage spécifique","28.97Y","Fabrication de machines de fabrication additive"]
["C","INDUSTRIE MANUFACTURIÈRE",{"$f":"LEFT(Tableau1[[#This Row],[Code2]],2)","v":"28"},"Fabrication de machines et équipements n.c.a.",{"$f":"LEFT(Tableau1[[#This Row],[Code3UID]],4)","v":"28.9"},"Fabrication d’autres machines d’usage spécifique","28.99Y","Fabrication d’autres machines d’usage spécifique n.c.a."]
["C","INDUSTRIE MANUFACTURIÈRE",{"$f":"LEFT(Tableau1[[#This Row],[Code2]],2)","v":"29"},"Industrie automobile",{"$f":"LEFT(Tableau1[[#This Row],[Code3UID]],4)","v":"29.1"},"Construction de véhicules automobiles","29.10Y","Construction de véhicules automobiles"]
["C","INDUSTRIE MANUFACTURIÈRE",{"$f":"LEFT(Tableau1[[#This Row],[Code2]],2)","v":"29"},"Industrie automobile",{"$f":"LEFT(Tableau1[[#This Row],[Code3UID]],4)","v":"29.2"},"Fabrication de carrosseries de véhicules automobiles ; fabrication de remorques et de semi-remorques","29.20Y","Fabrication de carrosseries de véhicules automobiles ; fabrication de remorques et de semi-remorques"]
["C","INDUSTRIE MANUFACTURIÈRE",{"$f":"LEFT(Tableau1[[#This Row],[Code2]],2)","v":"29"},"Industrie automobile",{"$f":"LEFT(Tableau1[[#This Row],[Code3UID]],4)","v":"29.3"},"Fabrication d’équipements automobiles","29.31Y","Fabrication d’équipements électriques et électroniques automobiles"]
["C","INDUSTRIE MANUFACTURIÈRE",{"$f":"LEFT(Tableau1[[#This Row],[Code2]],2)","v":"29"},"Industrie automobile",{"$f":"LEFT(Tableau1[[#This Row],[Code3UID]],4)","v":"29.3"},"Fabrication d’équipements automobiles","29.32Y","Fabrication d’autres équipements automobiles"]
["C","INDUSTRIE MANUFACTURIÈRE",{"$f":"LEFT(Tableau1[[#This Row],[Code2]],2)","v":"30"},"Fabrication d’autres matériels de transport",{"$f":"LEFT(Tableau1[[#This Row],[Code3UID]],4)","v":"30.1"},"Construction navale","30.11Y","Construction de navires et de structures flottantes civiles"]
["C","INDUSTRIE MANUFACTURIÈRE",{"$f":"LEFT(Tableau1[[#This Row],[Code2]],2)","v":"30"},"Fabrication d’autres matériels de transport",{"$f":"LEFT(Tableau1[[#This Row],[Code3UID]],4)","v":"30.1"},"Construction navale","30.12Y","Construction de bateaux de plaisance"]
["C","INDUSTRIE MANUFACTURIÈRE",{"$f":"LEFT(Tableau1[[#This Row],[Code2]],2)","v":"30"},"Fabrication d’autres matériels de transport",{"$f":"LEFT(Tableau1[[#This Row],[Code3UID]],4)","v":"30.1"},"Construction navale","30.13Y","Construction de bateaux et navires militaires"]
["C","INDUSTRIE MANUFACTURIÈRE",{"$f":"LEFT(Tableau1[[#This Row],[Code2]],2)","v":"30"},"Fabrication d’autres matériels de transport",{"$f":"LEFT(Tableau1[[#This Row],[Code3UID]],4)","v":"30.2"},"Construction de locomotives et d’autre matériel ferroviaire roulant","30.20Y","Construction de locomotives et d’autre matériel ferroviaire roulant"]
["C","INDUSTRIE MANUFACTURIÈRE",{"$f":"LEFT(Tableau1[[#This Row],[Code2]],2)","v":"30"},"Fabrication d’autres matériels de transport",{"$f":"LEFT(Tableau1[[#This Row],[Code3UID]],4)","v":"30.3"},"Construction aéronautique et spatiale","30.31Y","Construction aéronautique et spatiale civile"]
["C","INDUSTRIE MANUFACTURIÈRE",{"$f":"LEFT(Tableau1[[#This Row],[Code2]],2)","v":"30"},"Fabrication d’autres matériels de transport",{"$f":"LEFT(Tableau1[[#This Row],[Code3UID]],4)","v":"30.3"},"Construction aéronautique et spatiale","30.32Y","Construction aéronautique et spatiale militaire"]
["C","INDUSTRIE MANUFACTURIÈRE",{"$f":"LEFT(Tableau1[[#This Row],[Code2]],2)","v":"30"},"Fabrication d’autres matériels de transport",{"$f":"LEFT(Tableau1[[#This Row],[Code3UID]],4)","v":"30.4"},"Construction de véhicules militaires de combat","30.40Y","Construction de véhicules militaires de combat"]
["C","INDUSTRIE MANUFACTURIÈRE",{"$f":"LEFT(Tableau1[[#This Row],[Code2]],2)","v":"30"},"Fabrication d’autres matériels de transport",{"$f":"LEFT(Tableau1[[#This Row],[Code3UID]],4)","v":"30.9"},"Fabrication de matériels de transport n.c.a","30.91Y","Fabrication de motocycles"]
["C","INDUSTRIE MANUFACTURIÈRE",{"$f":"LEFT(Tableau1[[#This Row],[Code2]],2)","v":"30"},"Fabrication d’autres matériels de transport",{"$f":"LEFT(Tableau1[[#This Row],[Code3UID]],4)","v":"30.9"},"Fabrication de matériels de transport n.c.a","30.92Y","Fabrication de bicyclettes et de véhicules pour invalides"]
["C","INDUSTRIE MANUFACTURIÈRE",{"$f":"LEFT(Tableau1[[#This Row],[Code2]],2)","v":"30"},"Fabrication d’autres matériels de transport",{"$f":"LEFT(Tableau1[[#This Row],[Code3UID]],4)","v":"30.9"},"Fabrication de matériels de transport n.c.a","30.99Y","Fabrication d’autres équipements de transport n.c.a."]
["C","INDUSTRIE MANUFACTURIÈRE",{"$f":"LEFT(Tableau1[[#This Row],[Code2]],2)","v":"31"},"Fabrication de meubles",{"$f":"LEFT(Tableau1[[#This Row],[Code3UID]],4)","v":"31.0"},"Fabrication de meubles","31.00G","Fabrication de meubles à destination de professionnels"]
["C","INDUSTRIE MANUFACTURIÈRE",{"$f":"LEFT(Tableau1[[#This Row],[Code2]],2)","v":"31"},"Fabrication de meubles",{"$f":"LEFT(Tableau1[[#This Row],[Code3UID]],4)","v":"31.0"},"Fabrication de meubles","31.00H","Fabrication de meubles de cuisine et salle de bain"]
["C","INDUSTRIE MANUFACTURIÈRE",{"$f":"LEFT(Tableau1[[#This Row],[Code2]],2)","v":"31"},"Fabrication de meubles",{"$f":"LEFT(Tableau1[[#This Row],[Code3UID]],4)","v":"31.0"},"Fabrication de meubles","31.00J","Fabrication d'autres meubles domestiques, de sommiers et de matelas"]
["C","INDUSTRIE MANUFACTURIÈRE",{"$f":"LEFT(Tableau1[[#This Row],[Code2]],2)","v":"32"},"Autres industries manufacturières",{"$f":"LEFT(Tableau1[[#This Row],[Code3UID]],4)","v":"32.1"},"Fabrication d’articles de joaillerie, bijouterie et articles similaires","32.11Y","Frappe de monnaie"]
["C","INDUSTRIE MANUFACTURIÈRE",{"$f":"LEFT(Tableau1[[#This Row],[Code2]],2)","v":"32"},"Autres industries manufacturières",{"$f":"LEFT(Tableau1[[#This Row],[Code3UID]],4)","v":"32.1"},"Fabrication d’articles de joaillerie, bijouterie et articles similaires","32.12Y","Fabrication d’articles de joaillerie et bijouterie"]
["C","INDUSTRIE MANUFACTURIÈRE",{"$f":"LEFT(Tableau1[[#This Row],[Code2]],2)","v":"32"},"Autres industries manufacturières",{"$f":"LEFT(Tableau1[[#This Row],[Code3UID]],4)","v":"32.1"},"Fabrication d’articles de joaillerie, bijouterie et articles similaires","32.13Y","Fabrication d’articles de bijouterie fantaisie et articles similaires"]
["C","INDUSTRIE MANUFACTURIÈRE",{"$f":"LEFT(Tableau1[[#This Row],[Code2]],2)","v":"32"},"Autres industries manufacturières",{"$f":"LEFT(Tableau1[[#This Row],[Code3UID]],4)","v":"32.2"},"Fabrication d’instruments de musique","32.20Y","Fabrication d’instruments de musique"]
["C","INDUSTRIE MANUFACTURIÈRE",{"$f":"LEFT(Tableau1[[#This Row],[Code2]],2)","v":"32"},"Autres industries manufacturières",{"$f":"LEFT(Tableau1[[#This Row],[Code3UID]],4)","v":"32.3"},"Fabrication d’articles de sport","32.30Y","Fabrication d’articles de sport"]
["C","INDUSTRIE MANUFACTURIÈRE",{"$f":"LEFT(Tableau1[[#This Row],[Code2]],2)","v":"32"},"Autres industries manufacturières",{"$f":"LEFT(Tableau1[[#This Row],[Code3UID]],4)","v":"32.4"},"Fabrication de jeux et jouets","32.40Y","Fabrication de jeux et jouets"]
["C","INDUSTRIE MANUFACTURIÈRE",{"$f":"LEFT(Tableau1[[#This Row],[Code2]],2)","v":"32"},"Autres industries manufacturières",{"$f":"LEFT(Tableau1[[#This Row],[Code3UID]],4)","v":"32.5"},"Fabrication d’instruments et de fournitures à usage médical et dentaire","32.50Y","Fabrication d’instruments et de fournitures à usage médical et dentaire"]
["C","INDUSTRIE MANUFACTURIÈRE",{"$f":"LEFT(Tableau1[[#This Row],[Code2]],2)","v":"32"},"Autres industries manufacturières",{"$f":"LEFT(Tableau1[[#This Row],[Code3UID]],4)","v":"32.9"},"Activités manufacturières n.c.a.","32.91Y","Fabrication d’articles de brosserie"]
["C","INDUSTRIE MANUFACTURIÈRE",{"$f":"LEFT(Tableau1[[#This Row],[Code2]],2)","v":"32"},"Autres industries manufacturières",{"$f":"LEFT(Tableau1[[#This Row],[Code3UID]],4)","v":"32.9"},"Activités manufacturières n.c.a.","32.99Y","Autres activités manufacturières n.c.a."]
["C","INDUSTRIE MANUFACTURIÈRE",{"$f":"LEFT(Tableau1[[#This Row],[Code2]],2)","v":"33"},"Réparation, entretien et installation de machines et d’équipements",{"$f":"LEFT(Tableau1[[#This Row],[Code3UID]],4)","v":"33.1"},"Réparation et entretien d’ouvrages en métaux, de machines et d’équipements","33.11Y","Réparation et entretien d’ouvrages en métaux"]
["C","INDUSTRIE MANUFACTURIÈRE",{"$f":"LEFT(Tableau1[[#This Row],[Code2]],2)","v":"33"},"Réparation, entretien et installation de machines et d’équipements",{"$f":"LEFT(Tableau1[[#This Row],[Code3UID]],4)","v":"33.1"},"Réparation et entretien d’ouvrages en métaux, de machines et d’équipements","33.12Y","Réparation et entretien de machines"]
["C","INDUSTRIE MANUFACTURIÈRE",{"$f":"LEFT(Tableau1[[#This Row],[Code2]],2)","v":"33"},"Réparation, entretien et installation de machines et d’équipements",{"$f":"LEFT(Tableau1[[#This Row],[Code3UID]],4)","v":"33.1"},"Réparation et entretien d’ouvrages en métaux, de machines et d’équipements","33.13Y","Réparation et entretien de matériels électroniques et optiques"]
["C","INDUSTRIE MANUFACTURIÈRE",{"$f":"LEFT(Tableau1[[#This Row],[Code2]],2)","v":"33"},"Réparation, entretien et installation de machines et d’équipements",{"$f":"LEFT(Tableau1[[#This Row],[Code3UID]],4)","v":"33.1"},"Réparation et entretien d’ouvrages en métaux, de machines et d’équipements","33.14Y","Réparation et entretien d’équipements électriques"]
["C","INDUSTRIE MANUFACTURIÈRE",{"$f":"LEFT(Tableau1[[#This Row],[Code2]],2)","v":"33"},"Réparation, entretien et installation de machines et d’équipements",{"$f":"LEFT(Tableau1[[#This Row],[Code3UID]],4)","v":"33.1"},"Réparation et entretien d’ouvrages en métaux, de machines et d’équipements","33.15Y","Réparation et entretien de bateaux et navires civils"]
["C","INDUSTRIE MANUFACTURIÈRE",{"$f":"LEFT(Tableau1[[#This Row],[Code2]],2)","v":"33"},"Réparation, entretien et installation de machines et d’équipements",{"$f":"LEFT(Tableau1[[#This Row],[Code3UID]],4)","v":"33.1"},"Réparation et entretien d’ouvrages en métaux, de machines et d’équipements","33.16Y","Réparation et entretien d’aéronefs et d’engins spatiaux civils"]
["C","INDUSTRIE MANUFACTURIÈRE",{"$f":"LEFT(Tableau1[[#This Row],[Code2]],2)","v":"33"},"Réparation, entretien et installation de machines et d’équipements",{"$f":"LEFT(Tableau1[[#This Row],[Code3UID]],4)","v":"33.1"},"Réparation et entretien d’ouvrages en métaux, de machines et d’équipements","33.17Y","Réparation et entretien d’autres équipements de transport civils"]
["C","INDUSTRIE MANUFACTURIÈRE",{"$f":"LEFT(Tableau1[[#This Row],[Code2]],2)","v":"33"},"Réparation, entretien et installation de machines et d’équipements",{"$f":"LEFT(Tableau1[[#This Row],[Code3UID]],4)","v":"33.1"},"Réparation et entretien d’ouvrages en métaux, de machines et d’équipements","33.18G","Réparation et entretien d’aéronefs et d’engins spatiaux militaires"]
["C","INDUSTRIE MANUFACTURIÈRE",{"$f":"LEFT(Tableau1[[#This Row],[Code2]],2)","v":"33"},"Réparation, entretien et installation de machines et d’équipements",{"$f":"LEFT(Tableau1[[#This Row],[Code3UID]],4)","v":"33.1"},"Réparation et entretien d’ouvrages en métaux, de machines et d’équipements","33.18H","Réparation et entretien de véhicules de combat, de navires et de bateaux militaires"]
["C","INDUSTRIE MANUFACTURIÈRE",{"$f":"LEFT(Tableau1[[#This Row],[Code2]],2)","v":"33"},"Réparation, entretien et installation de machines et d’équipements",{"$f":"LEFT(Tableau1[[#This Row],[Code3UID]],4)","v":"33.1"},"Réparation et entretien d’ouvrages en métaux, de machines et d’équipements","33.19Y","Réparation et entretien d’autres équipements"]
["C","INDUSTRIE MANUFACTURIÈRE",{"$f":"LEFT(Tableau1[[#This Row],[Code2]],2)","v":"33"},"Réparation, entretien et installation de machines et d’équipements",{"$f":"LEFT(Tableau1[[#This Row],[Code3UID]],4)","v":"33.2"},"Installation de machines et d’équipements industriels","33.20Y","Installation de machines et d’équipements industriels"]
["D","PRODUCTION ET DISTRIBUTION D’ÉLECTRICITÉ, DE GAZ, DE VAPEUR ET D’AIR CONDITIONNÉ",{"$f":"LEFT(Tableau1[[#This Row],[Code2]],2)","v":"35"},"Production et distribution d’électricité, de gaz, de vapeur et d’air conditionné",{"$f":"LEFT(Tableau1[[#This Row],[Code3UID]],4)","v":"35.1"},"Production, transport et distribution d’électricité","35.11Y","Production d’électricité à partir de sources non renouvelables"]
["D","PRODUCTION ET DISTRIBUTION D’ÉLECTRICITÉ, DE GAZ, DE VAPEUR ET D’AIR CONDITIONNÉ",{"$f":"LEFT(Tableau1[[#This Row],[Code2]],2)","v":"35"},"Production et distribution d’électricité, de gaz, de vapeur et d’air conditionné",{"$f":"LEFT(Tableau1[[#This Row],[Code3UID]],4)","v":"35.1"},"Production, transport et distribution d’électricité","35.12Y","Production d’électricité à partir de sources renouvelables"]
["D","PRODUCTION ET DISTRIBUTION D’ÉLECTRICITÉ, DE GAZ, DE VAPEUR ET D’AIR CONDITIONNÉ",{"$f":"LEFT(Tableau1[[#This Row],[Code2]],2)","v":"35"},"Production et distribution d’électricité, de gaz, de vapeur et d’air conditionné",{"$f":"LEFT(Tableau1[[#This Row],[Code3UID]],4)","v":"35.1"},"Production, transport et distribution d’électricité","35.13Y","Transport d’électricité"]
["D","PRODUCTION ET DISTRIBUTION D’ÉLECTRICITÉ, DE GAZ, DE VAPEUR ET D’AIR CONDITIONNÉ",{"$f":"LEFT(Tableau1[[#This Row],[Code2]],2)","v":"35"},"Production et distribution d’électricité, de gaz, de vapeur et d’air conditionné",{"$f":"LEFT(Tableau1[[#This Row],[Code3UID]],4)","v":"35.1"},"Production, transport et distribution d’électricité","35.14Y","Distribution d’électricité"]
["D","PRODUCTION ET DISTRIBUTION D’ÉLECTRICITÉ, DE GAZ, DE VAPEUR ET D’AIR CONDITIONNÉ",{"$f":"LEFT(Tableau1[[#This Row],[Code2]],2)","v":"35"},"Production et distribution d’électricité, de gaz, de vapeur et d’air conditionné",{"$f":"LEFT(Tableau1[[#This Row],[Code3UID]],4)","v":"35.1"},"Production, transport et distribution d’électricité","35.15G","Exploitation d'installations de recharge pour véhicules électriques"]
["D","PRODUCTION ET DISTRIBUTION D’ÉLECTRICITÉ, DE GAZ, DE VAPEUR ET D’AIR CONDITIONNÉ",{"$f":"LEFT(Tableau1[[#This Row],[Code2]],2)","v":"35"},"Production et distribution d’électricité, de gaz, de vapeur et d’air conditionné",{"$f":"LEFT(Tableau1[[#This Row],[Code3UID]],4)","v":"35.1"},"Production, transport et distribution d’électricité","35.15H","Autre commerce d’électricité"]
["D","PRODUCTION ET DISTRIBUTION D’ÉLECTRICITÉ, DE GAZ, DE VAPEUR ET D’AIR CONDITIONNÉ",{"$f":"LEFT(Tableau1[[#This Row],[Code2]],2)","v":"35"},"Production et distribution d’électricité, de gaz, de vapeur et d’air conditionné",{"$f":"LEFT(Tableau1[[#This Row],[Code3UID]],4)","v":"35.1"},"Production, transport et distribution d’électricité","35.16Y","Stockage de l’électricité"]
["D","PRODUCTION ET DISTRIBUTION D’ÉLECTRICITÉ, DE GAZ, DE VAPEUR ET D’AIR CONDITIONNÉ",{"$f":"LEFT(Tableau1[[#This Row],[Code2]],2)","v":"35"},"Production et distribution d’électricité, de gaz, de vapeur et d’air conditionné",{"$f":"LEFT(Tableau1[[#This Row],[Code3UID]],4)","v":"35.2"},"Production de gaz et distribution de combustibles gazeux par conduites","35.21Y","Production de gaz"]
["D","PRODUCTION ET DISTRIBUTION D’ÉLECTRICITÉ, DE GAZ, DE VAPEUR ET D’AIR CONDITIONNÉ",{"$f":"LEFT(Tableau1[[#This Row],[Code2]],2)","v":"35"},"Production et distribution d’électricité, de gaz, de vapeur et d’air conditionné",{"$f":"LEFT(Tableau1[[#This Row],[Code3UID]],4)","v":"35.2"},"Production de gaz et distribution de combustibles gazeux par conduites","35.22Y","Distribution de combustibles gazeux par conduites"]
["D","PRODUCTION ET DISTRIBUTION D’ÉLECTRICITÉ, DE GAZ, DE VAPEUR ET D’AIR CONDITIONNÉ",{"$f":"LEFT(Tableau1[[#This Row],[Code2]],2)","v":"35"},"Production et distribution d’électricité, de gaz, de vapeur et d’air conditionné",{"$f":"LEFT(Tableau1[[#This Row],[Code3UID]],4)","v":"35.2"},"Production de gaz et distribution de combustibles gazeux par conduites","35.23Y","Commerce de combustibles gazeux par conduites"]
["D","PRODUCTION ET DISTRIBUTION D’ÉLECTRICITÉ, DE GAZ, DE VAPEUR ET D’AIR CONDITIONNÉ",{"$f":"LEFT(Tableau1[[#This Row],[Code2]],2)","v":"35"},"Production et distribution d’électricité, de gaz, de vapeur et d’air conditionné",{"$f":"LEFT(Tableau1[[#This Row],[Code3UID]],4)","v":"35.2"},"Production de gaz et distribution de combustibles gazeux par conduites","35.24Y","Stockage de gaz dans le cadre de services d’approvisionnement en réseau"]
["D","PRODUCTION ET DISTRIBUTION D’ÉLECTRICITÉ, DE GAZ, DE VAPEUR ET D’AIR CONDITIONNÉ",{"$f":"LEFT(Tableau1[[#This Row],[Code2]],2)","v":"35"},"Production et distribution d’électricité, de gaz, de vapeur et d’air conditionné",{"$f":"LEFT(Tableau1[[#This Row],[Code3UID]],4)","v":"35.3"},"Production et distribution de vapeur et d’air conditionné","35.30Y","Production et distribution de vapeur et d’air conditionné"]
["D","PRODUCTION ET DISTRIBUTION D’ÉLECTRICITÉ, DE GAZ, DE VAPEUR ET D’AIR CONDITIONNÉ",{"$f":"LEFT(Tableau1[[#This Row],[Code2]],2)","v":"35"},"Production et distribution d’électricité, de gaz, de vapeur et d’air conditionné",{"$f":"LEFT(Tableau1[[#This Row],[Code3UID]],4)","v":"35.4"},"Activités des courtiers et agents pour l’électricité et le gaz naturel","35.40Y","Activités des courtiers et agents pour l’électricité et le gaz naturel"]
["E","PRODUCTION ET DISTRIBUTION D’EAU ; ASSAINISSEMENT, GESTION DES DÉCHETS ET DÉPOLLUTION",{"$f":"LEFT(Tableau1[[#This Row],[Code2]],2)","v":"36"},"Captage, traitement et distribution d’eau",{"$f":"LEFT(Tableau1[[#This Row],[Code3UID]],4)","v":"36.0"},"Captage, traitement et distribution d’eau","36.00Y","Captage, traitement et distribution d’eau"]
["E","PRODUCTION ET DISTRIBUTION D’EAU ; ASSAINISSEMENT, GESTION DES DÉCHETS ET DÉPOLLUTION",{"$f":"LEFT(Tableau1[[#This Row],[Code2]],2)","v":"37"},"Collecte et traitement des eaux usées",{"$f":"LEFT(Tableau1[[#This Row],[Code3UID]],4)","v":"37.0"},"Collecte et traitement des eaux usées","37.00Y","Collecte et traitement des eaux usées"]
["E","PRODUCTION ET DISTRIBUTION D’EAU ; ASSAINISSEMENT, GESTION DES DÉCHETS ET DÉPOLLUTION",{"$f":"LEFT(Tableau1[[#This Row],[Code2]],2)","v":"38"},"Collecte, valorisation et élimination des déchets",{"$f":"LEFT(Tableau1[[#This Row],[Code3UID]],4)","v":"38.1"},"Collecte des déchets","38.11Y","Collecte des déchets non dangereux"]
["E","PRODUCTION ET DISTRIBUTION D’EAU ; ASSAINISSEMENT, GESTION DES DÉCHETS ET DÉPOLLUTION",{"$f":"LEFT(Tableau1[[#This Row],[Code2]],2)","v":"38"},"Collecte, valorisation et élimination des déchets",{"$f":"LEFT(Tableau1[[#This Row],[Code3UID]],4)","v":"38.1"},"Collecte des déchets","38.12Y","Collecte des déchets dangereux"]
["E","PRODUCTION ET DISTRIBUTION D’EAU ; ASSAINISSEMENT, GESTION DES DÉCHETS ET DÉPOLLUTION",{"$f":"LEFT(Tableau1[[#This Row],[Code2]],2)","v":"38"},"Collecte, valorisation et élimination des déchets",{"$f":"LEFT(Tableau1[[#This Row],[Code3UID]],4)","v":"38.2"},"Valorisation des déchets","38.21Y","Récupération de matériaux"]
["E","PRODUCTION ET DISTRIBUTION D’EAU ; ASSAINISSEMENT, GESTION DES DÉCHETS ET DÉPOLLUTION",{"$f":"LEFT(Tableau1[[#This Row],[Code2]],2)","v":"38"},"Collecte, valorisation et élimination des déchets",{"$f":"LEFT(Tableau1[[#This Row],[Code3UID]],4)","v":"38.2"},"Valorisation des déchets","38.22Y","Valorisation énergétique"]
["E","PRODUCTION ET DISTRIBUTION D’EAU ; ASSAINISSEMENT, GESTION DES DÉCHETS ET DÉPOLLUTION",{"$f":"LEFT(Tableau1[[#This Row],[Code2]],2)","v":"38"},"Collecte, valorisation et élimination des déchets",{"$f":"LEFT(Tableau1[[#This Row],[Code3UID]],4)","v":"38.2"},"Valorisation des déchets","38.23Y","Autre valorisation des déchets"]
["E","PRODUCTION ET DISTRIBUTION D’EAU ; ASSAINISSEMENT, GESTION DES DÉCHETS ET DÉPOLLUTION",{"$f":"LEFT(Tableau1[[#This Row],[Code2]],2)","v":"38"},"Collecte, valorisation et élimination des déchets",{"$f":"LEFT(Tableau1[[#This Row],[Code3UID]],4)","v":"38.3"},"Élimination des déchets sans valorisation","38.31Y","Incinération sans récupération d’énergie"]
["E","PRODUCTION ET DISTRIBUTION D’EAU ; ASSAINISSEMENT, GESTION DES DÉCHETS ET DÉPOLLUTION",{"$f":"LEFT(Tableau1[[#This Row],[Code2]],2)","v":"38"},"Collecte, valorisation et élimination des déchets",{"$f":"LEFT(Tableau1[[#This Row],[Code3UID]],4)","v":"38.3"},"Élimination des déchets sans valorisation","38.32Y","Mise en décharge ou stockage permanent"]
["E","PRODUCTION ET DISTRIBUTION D’EAU ; ASSAINISSEMENT, GESTION DES DÉCHETS ET DÉPOLLUTION",{"$f":"LEFT(Tableau1[[#This Row],[Code2]],2)","v":"38"},"Collecte, valorisation et élimination des déchets",{"$f":"LEFT(Tableau1[[#This Row],[Code3UID]],4)","v":"38.3"},"Élimination des déchets sans valorisation","38.33Y","Autre élimination des déchets"]
["E","PRODUCTION ET DISTRIBUTION D’EAU ; ASSAINISSEMENT, GESTION DES DÉCHETS ET DÉPOLLUTION",{"$f":"LEFT(Tableau1[[#This Row],[Code2]],2)","v":"39"},"Collecte, valorisation et élimination des déchets",{"$f":"LEFT(Tableau1[[#This Row],[Code3UID]],4)","v":"39.0"},"Activités de dépollution et autres activités de service de gestion des déchets","39.00Y","Activités de dépollution et autres activités de service de gestion des déchets"]
["F","CONSTRUCTION",{"$f":"LEFT(Tableau1[[#This Row],[Code2]],2)","v":"41"},"Construction de bâtiments résidentiels et non résidentiels",{"$f":"LEFT(Tableau1[[#This Row],[Code3UID]],4)","v":"41.0"},"Construction de bâtiments résidentiels et non résidentiels","41.00G","Construction de maisons individuelles"]
["F","CONSTRUCTION",{"$f":"LEFT(Tableau1[[#This Row],[Code2]],2)","v":"41"},"Construction de bâtiments résidentiels et non résidentiels",{"$f":"LEFT(Tableau1[[#This Row],[Code3UID]],4)","v":"41.0"},"Construction de bâtiments résidentiels et non résidentiels","41.00H","Construction d'autres bâtiments"]
["F","CONSTRUCTION",{"$f":"LEFT(Tableau1[[#This Row],[Code2]],2)","v":"42"},"Génie civil",{"$f":"LEFT(Tableau1[[#This Row],[Code3UID]],4)","v":"42.1"},"Construction de routes et de voies ferrées","42.11Y","Construction de routes et autoroutes"]
["F","CONSTRUCTION",{"$f":"LEFT(Tableau1[[#This Row],[Code2]],2)","v":"42"},"Génie civil",{"$f":"LEFT(Tableau1[[#This Row],[Code3UID]],4)","v":"42.1"},"Construction de routes et de voies ferrées","42.12Y","Construction de voies ferrées de surface et souterraines"]
["F","CONSTRUCTION",{"$f":"LEFT(Tableau1[[#This Row],[Code2]],2)","v":"42"},"Génie civil",{"$f":"LEFT(Tableau1[[#This Row],[Code3UID]],4)","v":"42.1"},"Construction de routes et de voies ferrées","42.13G","Construction de ponts et de viaducs"]
["F","CONSTRUCTION",{"$f":"LEFT(Tableau1[[#This Row],[Code2]],2)","v":"42"},"Génie civil",{"$f":"LEFT(Tableau1[[#This Row],[Code3UID]],4)","v":"42.1"},"Construction de routes et de voies ferrées","42.13H","Construction de tunnels"]
["F","CONSTRUCTION",{"$f":"LEFT(Tableau1[[#This Row],[Code2]],2)","v":"42"},"Génie civil",{"$f":"LEFT(Tableau1[[#This Row],[Code3UID]],4)","v":"42.2"},"Construction de réseaux et de lignes","42.21Y","Construction de réseaux pour fluides"]
["F","CONSTRUCTION",{"$f":"LEFT(Tableau1[[#This Row],[Code2]],2)","v":"42"},"Génie civil",{"$f":"LEFT(Tableau1[[#This Row],[Code3UID]],4)","v":"42.2"},"Construction de réseaux et de lignes","42.22Y","Construction de réseaux électriques et de télécommunications"]
["F","CONSTRUCTION",{"$f":"LEFT(Tableau1[[#This Row],[Code2]],2)","v":"42"},"Génie civil",{"$f":"LEFT(Tableau1[[#This Row],[Code3UID]],4)","v":"42.9"},"Construction d’autres ouvrages de génie civil","42.91Y","Construction d’ouvrages maritimes et fluviaux"]
["F","CONSTRUCTION",{"$f":"LEFT(Tableau1[[#This Row],[Code2]],2)","v":"42"},"Génie civil",{"$f":"LEFT(Tableau1[[#This Row],[Code3UID]],4)","v":"42.9"},"Construction d’autres ouvrages de génie civil","42.99Y","Construction d’autres ouvrages de génie civil n.c.a."]
["F","CONSTRUCTION",{"$f":"LEFT(Tableau1[[#This Row],[Code2]],2)","v":"43"},"Travaux de construction spécialisés",{"$f":"LEFT(Tableau1[[#This Row],[Code3UID]],4)","v":"43.1"},"Démolition et préparation des sites","43.11Y","Démolition"]
["F","CONSTRUCTION",{"$f":"LEFT(Tableau1[[#This Row],[Code2]],2)","v":"43"},"Travaux de construction spécialisés",{"$f":"LEFT(Tableau1[[#This Row],[Code3UID]],4)","v":"43.1"},"Démolition et préparation des sites","43.12G","Travaux de terrassement courants et travaux préparatoires"]
["F","CONSTRUCTION",{"$f":"LEFT(Tableau1[[#This Row],[Code2]],2)","v":"43"},"Travaux de construction spécialisés",{"$f":"LEFT(Tableau1[[#This Row],[Code3UID]],4)","v":"43.1"},"Démolition et préparation des sites","43.12H","Travaux de terrassement spécialisés ou de grande masse"]
["F","CONSTRUCTION",{"$f":"LEFT(Tableau1[[#This Row],[Code2]],2)","v":"43"},"Travaux de construction spécialisés",{"$f":"LEFT(Tableau1[[#This Row],[Code3UID]],4)","v":"43.1"},"Démolition et préparation des sites","43.13Y","Forages et sondages"]
["F","CONSTRUCTION",{"$f":"LEFT(Tableau1[[#This Row],[Code2]],2)","v":"43"},"Travaux de construction spécialisés",{"$f":"LEFT(Tableau1[[#This Row],[Code3UID]],4)","v":"43.2"},"Travaux d’installation électrique, plomberie et autres travaux d’installation","43.21G","Travaux d'installation électrique dans tous"]
["F","CONSTRUCTION",{"$f":"LEFT(Tableau1[[#This Row],[Code2]],2)","v":"43"},"Travaux de construction spécialisés",{"$f":"LEFT(Tableau1[[#This Row],[Code3UID]],4)","v":"43.2"},"Travaux d’installation électrique, plomberie et autres travaux d’installation","43.21H","Travaux d'installation électrique sur la voie"]
["F","CONSTRUCTION",{"$f":"LEFT(Tableau1[[#This Row],[Code2]],2)","v":"43"},"Travaux de construction spécialisés",{"$f":"LEFT(Tableau1[[#This Row],[Code3UID]],4)","v":"43.2"},"Travaux d’installation électrique, plomberie et autres travaux d’installation","43.22G","Travaux d'installation d'eau et de gaz en tous locaux"]
["F","CONSTRUCTION",{"$f":"LEFT(Tableau1[[#This Row],[Code2]],2)","v":"43"},"Travaux de construction spécialisés",{"$f":"LEFT(Tableau1[[#This Row],[Code3UID]],4)","v":"43.2"},"Travaux d’installation électrique, plomberie et autres travaux d’installation","43.22H","Travaux d'installation d'équipements thermiques et de climatisation"]
["F","CONSTRUCTION",{"$f":"LEFT(Tableau1[[#This Row],[Code2]],2)","v":"43"},"Travaux de construction spécialisés",{"$f":"LEFT(Tableau1[[#This Row],[Code3UID]],4)","v":"43.2"},"Travaux d’installation électrique, plomberie et autres travaux d’installation","43.23Y","Mise en place de l’isolation"]
["F","CONSTRUCTION",{"$f":"LEFT(Tableau1[[#This Row],[Code2]],2)","v":"43"},"Travaux de construction spécialisés",{"$f":"LEFT(Tableau1[[#This Row],[Code3UID]],4)","v":"43.2"},"Travaux d’installation électrique, plomberie et autres travaux d’installation","43.24Y","Autres travaux d’installation"]
["F","CONSTRUCTION",{"$f":"LEFT(Tableau1[[#This Row],[Code2]],2)","v":"43"},"Travaux de construction spécialisés",{"$f":"LEFT(Tableau1[[#This Row],[Code3UID]],4)","v":"43.3"},"Travaux de finition","43.31Y","Travaux de plâtrerie"]
["F","CONSTRUCTION",{"$f":"LEFT(Tableau1[[#This Row],[Code2]],2)","v":"43"},"Travaux de construction spécialisés",{"$f":"LEFT(Tableau1[[#This Row],[Code3UID]],4)","v":"43.3"},"Travaux de finition","43.32G","Travaux de menuiserie bois et PVC"]
["F","CONSTRUCTION",{"$f":"LEFT(Tableau1[[#This Row],[Code2]],2)","v":"43"},"Travaux de construction spécialisés",{"$f":"LEFT(Tableau1[[#This Row],[Code3UID]],4)","v":"43.3"},"Travaux de finition","43.32H","Travaux de menuiserie métallique"]
["F","CONSTRUCTION",{"$f":"LEFT(Tableau1[[#This Row],[Code2]],2)","v":"43"},"Travaux de construction spécialisés",{"$f":"LEFT(Tableau1[[#This Row],[Code3UID]],4)","v":"43.3"},"Travaux de finition","43.33Y","Travaux de revêtement des sols et des murs"]
["F","CONSTRUCTION",{"$f":"LEFT(Tableau1[[#This Row],[Code2]],2)","v":"43"},"Travaux de construction spécialisés",{"$f":"LEFT(Tableau1[[#This Row],[Code3UID]],4)","v":"43.3"},"Travaux de finition","43.34G","Travaux de peinture"]
["F","CONSTRUCTION",{"$f":"LEFT(Tableau1[[#This Row],[Code2]],2)","v":"43"},"Travaux de construction spécialisés",{"$f":"LEFT(Tableau1[[#This Row],[Code3UID]],4)","v":"43.3"},"Travaux de finition","43.34H","Travaux de vitrerie"]
["F","CONSTRUCTION",{"$f":"LEFT(Tableau1[[#This Row],[Code2]],2)","v":"43"},"Travaux de construction spécialisés",{"$f":"LEFT(Tableau1[[#This Row],[Code3UID]],4)","v":"43.3"},"Travaux de finition","43.35Y","Autres travaux de finition"]
["F","CONSTRUCTION",{"$f":"LEFT(Tableau1[[#This Row],[Code2]],2)","v":"43"},"Travaux de construction spécialisés",{"$f":"LEFT(Tableau1[[#This Row],[Code3UID]],4)","v":"43.4"},"Travaux de construction spécialisés dans la construction de bâtiments","43.41G","Travaux de charpente"]
["F","CONSTRUCTION",{"$f":"LEFT(Tableau1[[#This Row],[Code2]],2)","v":"43"},"Travaux de construction spécialisés",{"$f":"LEFT(Tableau1[[#This Row],[Code3UID]],4)","v":"43.4"},"Travaux de construction spécialisés dans la construction de bâtiments","43.41H","Travaux de couverture par éléments"]
["F","CONSTRUCTION",{"$f":"LEFT(Tableau1[[#This Row],[Code2]],2)","v":"43"},"Travaux de construction spécialisés",{"$f":"LEFT(Tableau1[[#This Row],[Code3UID]],4)","v":"43.4"},"Travaux de construction spécialisés dans la construction de bâtiments","43.41J","Travaux d'étanchéification pour la toiture"]
["F","CONSTRUCTION",{"$f":"LEFT(Tableau1[[#This Row],[Code2]],2)","v":"43"},"Travaux de construction spécialisés",{"$f":"LEFT(Tableau1[[#This Row],[Code3UID]],4)","v":"43.4"},"Travaux de construction spécialisés dans la construction de bâtiments","43.42G","Travaux de montage d’éléments de construction préfabriqués pour bâtiments, en acier"]
["F","CONSTRUCTION",{"$f":"LEFT(Tableau1[[#This Row],[Code2]],2)","v":"43"},"Travaux de construction spécialisés",{"$f":"LEFT(Tableau1[[#This Row],[Code3UID]],4)","v":"43.4"},"Travaux de construction spécialisés dans la construction de bâtiments","43.42H","Travaux de montage d’éléments de construction préfabriqués pour bâtiments, en bois"]
["F","CONSTRUCTION",{"$f":"LEFT(Tableau1[[#This Row],[Code2]],2)","v":"43"},"Travaux de construction spécialisés",{"$f":"LEFT(Tableau1[[#This Row],[Code3UID]],4)","v":"43.4"},"Travaux de construction spécialisés dans la construction de bâtiments","43.42J","Autres travaux de construction spécialisés dans la construction de bâtiments n.c.a."]
["F","CONSTRUCTION",{"$f":"LEFT(Tableau1[[#This Row],[Code2]],2)","v":"43"},"Travaux de construction spécialisés",{"$f":"LEFT(Tableau1[[#This Row],[Code3UID]],4)","v":"43.5"},"Travaux de construction spécialisés en génie civil","43.50Y","Travaux de construction spécialisés en génie civil"]
["F","CONSTRUCTION",{"$f":"LEFT(Tableau1[[#This Row],[Code2]],2)","v":"43"},"Travaux de construction spécialisés",{"$f":"LEFT(Tableau1[[#This Row],[Code3UID]],4)","v":"43.6"},"Activités de service d’intermédiation pour des travaux de construction spécialisés","43.60Y","Activités de service d’intermédiation pour des travaux de construction spécialisés"]
["F","CONSTRUCTION",{"$f":"LEFT(Tableau1[[#This Row],[Code2]],2)","v":"43"},"Travaux de construction spécialisés",{"$f":"LEFT(Tableau1[[#This Row],[Code3UID]],4)","v":"43.9"},"Autres travaux de construction spécialisés","43.91Y","Travaux de maçonnerie et de pose de briques"]
["F","CONSTRUCTION",{"$f":"LEFT(Tableau1[[#This Row],[Code2]],2)","v":"43"},"Travaux de construction spécialisés",{"$f":"LEFT(Tableau1[[#This Row],[Code3UID]],4)","v":"43.9"},"Autres travaux de construction spécialisés","43.99G","Location avec opérateur d’équipement de construction"]
["F","CONSTRUCTION",{"$f":"LEFT(Tableau1[[#This Row],[Code2]],2)","v":"43"},"Travaux de construction spécialisés",{"$f":"LEFT(Tableau1[[#This Row],[Code3UID]],4)","v":"43.9"},"Autres travaux de construction spécialisés","43.99H","Tous les autres travaux de construction spécialisés n.c.a."]
["G","COMMERCE",{"$f":"LEFT(Tableau1[[#This Row],[Code2]],2)","v":"46"},"Commerce de gros",{"$f":"LEFT(Tableau1[[#This Row],[Code3UID]],4)","v":"46.1"},"Intermédiaires du commerce de gros","46.11Y","Activités d’intermédiaire du commerce de gros en matières premières agricoles, animaux vivants, matières premières textiles et produits semi-finis"]
["G","COMMERCE",{"$f":"LEFT(Tableau1[[#This Row],[Code2]],2)","v":"46"},"Commerce de gros",{"$f":"LEFT(Tableau1[[#This Row],[Code3UID]],4)","v":"46.1"},"Intermédiaires du commerce de gros","46.12Y","Activités d’intermédiaire du commerce de gros en combustibles, minerais, métaux et produits chimiques"]
["G","COMMERCE",{"$f":"LEFT(Tableau1[[#This Row],[Code2]],2)","v":"46"},"Commerce de gros",{"$f":"LEFT(Tableau1[[#This Row],[Code3UID]],4)","v":"46.1"},"Intermédiaires du commerce de gros","46.13Y","Activités d’intermédiaire du commerce de gros en bois et matériaux de construction"]
["G","COMMERCE",{"$f":"LEFT(Tableau1[[#This Row],[Code2]],2)","v":"46"},"Commerce de gros",{"$f":"LEFT(Tableau1[[#This Row],[Code3UID]],4)","v":"46.1"},"Intermédiaires du commerce de gros","46.14Y","Activités d’intermédiaire du commerce de gros en machines, équipements industriels, navires et avions"]
["G","COMMERCE",{"$f":"LEFT(Tableau1[[#This Row],[Code2]],2)","v":"46"},"Commerce de gros",{"$f":"LEFT(Tableau1[[#This Row],[Code3UID]],4)","v":"46.1"},"Intermédiaires du commerce de gros","46.15Y","Activités d’intermédiaire du commerce de gros en meubles, biens domestiques et quincaillerie"]
["G","COMMERCE",{"$f":"LEFT(Tableau1[[#This Row],[Code2]],2)","v":"46"},"Commerce de gros",{"$f":"LEFT(Tableau1[[#This Row],[Code3UID]],4)","v":"46.1"},"Intermédiaires du commerce de gros","46.16Y","Activités d’intermédiaire du commerce de gros en textiles, habillement, fourrures, chaussures et articles en cuir"]
["G","COMMERCE",{"$f":"LEFT(Tableau1[[#This Row],[Code2]],2)","v":"46"},"Commerce de gros",{"$f":"LEFT(Tableau1[[#This Row],[Code3UID]],4)","v":"46.1"},"Intermédiaires du commerce de gros","46.17G","Activités d’intermédiation des centrales d’achat alimentaires"]
["G","COMMERCE",{"$f":"LEFT(Tableau1[[#This Row],[Code2]],2)","v":"46"},"Commerce de gros",{"$f":"LEFT(Tableau1[[#This Row],[Code3UID]],4)","v":"46.1"},"Intermédiaires du commerce de gros","46.17H","Autres activités d'intermédiaire du commerce de gros en denrées, boissons et tabac"]
["G","COMMERCE",{"$f":"LEFT(Tableau1[[#This Row],[Code2]],2)","v":"46"},"Commerce de gros",{"$f":"LEFT(Tableau1[[#This Row],[Code3UID]],4)","v":"46.1"},"Intermédiaires du commerce de gros","46.18Y","Activités d’intermédiaire spécialisé dans le commerce de gros d’autres produits spécifiques"]
["G","COMMERCE",{"$f":"LEFT(Tableau1[[#This Row],[Code2]],2)","v":"46"},"Commerce de gros",{"$f":"LEFT(Tableau1[[#This Row],[Code3UID]],4)","v":"46.1"},"Intermédiaires du commerce de gros","46.19G","Activités d’intermédiation des centrales d’achat non spécialisées"]
["G","COMMERCE",{"$f":"LEFT(Tableau1[[#This Row],[Code2]],2)","v":"46"},"Commerce de gros",{"$f":"LEFT(Tableau1[[#This Row],[Code3UID]],4)","v":"46.1"},"Intermédiaires du commerce de gros","46.19H","Autres activités d'intermédiaire non spécialisé du commerce de gros"]
["G","COMMERCE",{"$f":"LEFT(Tableau1[[#This Row],[Code2]],2)","v":"46"},"Commerce de gros",{"$f":"LEFT(Tableau1[[#This Row],[Code3UID]],4)","v":"46.2"},"Commerce de gros de produits agricoles bruts et d’animaux vivants","46.21Y","Commerce de gros de céréales, de tabac non manufacturé, de semences et d’aliments pour animaux"]
["G","COMMERCE",{"$f":"LEFT(Tableau1[[#This Row],[Code2]],2)","v":"46"},"Commerce de gros",{"$f":"LEFT(Tableau1[[#This Row],[Code3UID]],4)","v":"46.2"},"Commerce de gros de produits agricoles bruts et d’animaux vivants","46.22Y","Commerce de gros de fleurs et de plantes"]
["G","COMMERCE",{"$f":"LEFT(Tableau1[[#This Row],[Code2]],2)","v":"46"},"Commerce de gros",{"$f":"LEFT(Tableau1[[#This Row],[Code3UID]],4)","v":"46.2"},"Commerce de gros de produits agricoles bruts et d’animaux vivants","46.23Y","Commerce de gros d’animaux vivants"]
["G","COMMERCE",{"$f":"LEFT(Tableau1[[#This Row],[Code2]],2)","v":"46"},"Commerce de gros",{"$f":"LEFT(Tableau1[[#This Row],[Code3UID]],4)","v":"46.2"},"Commerce de gros de produits agricoles bruts et d’animaux vivants","46.24Y","Commerce de gros de cuirs et de peaux"]
["G","COMMERCE",{"$f":"LEFT(Tableau1[[#This Row],[Code2]],2)","v":"46"},"Commerce de gros",{"$f":"LEFT(Tableau1[[#This Row],[Code3UID]],4)","v":"46.3"},"Commerce de gros de produits alimentaires, de boissons et de produits à base de tabac","46.31Y","Commerce de gros de fruits et légumes"]
["G","COMMERCE",{"$f":"LEFT(Tableau1[[#This Row],[Code2]],2)","v":"46"},"Commerce de gros",{"$f":"LEFT(Tableau1[[#This Row],[Code3UID]],4)","v":"46.3"},"Commerce de gros de produits alimentaires, de boissons et de produits à base de tabac","46.32G","Commerce de gros de viandes et de produits à base de viande"]
["G","COMMERCE",{"$f":"LEFT(Tableau1[[#This Row],[Code2]],2)","v":"46"},"Commerce de gros",{"$f":"LEFT(Tableau1[[#This Row],[Code3UID]],4)","v":"46.3"},"Commerce de gros de produits alimentaires, de boissons et de produits à base de tabac","46.32H","Commerce de gros de poissons, crustacés et mollusques et de produits à base de poisson"]
["G","COMMERCE",{"$f":"LEFT(Tableau1[[#This Row],[Code2]],2)","v":"46"},"Commerce de gros",{"$f":"LEFT(Tableau1[[#This Row],[Code3UID]],4)","v":"46.3"},"Commerce de gros de produits alimentaires, de boissons et de produits à base de tabac","46.33Y","Commerce de gros de produits laitiers, oeufs, huiles et matières grasses comestibles"]
["G","COMMERCE",{"$f":"LEFT(Tableau1[[#This Row],[Code2]],2)","v":"46"},"Commerce de gros",{"$f":"LEFT(Tableau1[[#This Row],[Code3UID]],4)","v":"46.3"},"Commerce de gros de produits alimentaires, de boissons et de produits à base de tabac","46.34Y","Commerce de gros de boissons"]
["G","COMMERCE",{"$f":"LEFT(Tableau1[[#This Row],[Code2]],2)","v":"46"},"Commerce de gros",{"$f":"LEFT(Tableau1[[#This Row],[Code3UID]],4)","v":"46.3"},"Commerce de gros de produits alimentaires, de boissons et de produits à base de tabac","46.35Y","Commerce de gros de produits à base de tabac"]
["G","COMMERCE",{"$f":"LEFT(Tableau1[[#This Row],[Code2]],2)","v":"46"},"Commerce de gros",{"$f":"LEFT(Tableau1[[#This Row],[Code3UID]],4)","v":"46.3"},"Commerce de gros de produits alimentaires, de boissons et de produits à base de tabac","46.36Y","Commerce de gros de sucre, chocolat et confiserie"]
["G","COMMERCE",{"$f":"LEFT(Tableau1[[#This Row],[Code2]],2)","v":"46"},"Commerce de gros",{"$f":"LEFT(Tableau1[[#This Row],[Code3UID]],4)","v":"46.3"},"Commerce de gros de produits alimentaires, de boissons et de produits à base de tabac","46.37Y","Commerce de gros de café, thé, cacao et épices"]
["G","COMMERCE",{"$f":"LEFT(Tableau1[[#This Row],[Code2]],2)","v":"46"},"Commerce de gros",{"$f":"LEFT(Tableau1[[#This Row],[Code3UID]],4)","v":"46.3"},"Commerce de gros de produits alimentaires, de boissons et de produits à base de tabac","46.38Y","Commerce de gros d’autres denrées alimentaires"]
["G","COMMERCE",{"$f":"LEFT(Tableau1[[#This Row],[Code2]],2)","v":"46"},"Commerce de gros",{"$f":"LEFT(Tableau1[[#This Row],[Code3UID]],4)","v":"46.3"},"Commerce de gros de produits alimentaires, de boissons et de produits à base de tabac","46.39Y","Commerce de gros non spécialisé de denrées, boissons et tabac"]
["G","COMMERCE",{"$f":"LEFT(Tableau1[[#This Row],[Code2]],2)","v":"46"},"Commerce de gros",{"$f":"LEFT(Tableau1[[#This Row],[Code3UID]],4)","v":"46.4"},"Commerce de gros de biens domestiques","46.41Y","Commerce de gros de textiles"]
["G","COMMERCE",{"$f":"LEFT(Tableau1[[#This Row],[Code2]],2)","v":"46"},"Commerce de gros",{"$f":"LEFT(Tableau1[[#This Row],[Code3UID]],4)","v":"46.4"},"Commerce de gros de biens domestiques","46.42Y","Commerce de gros d’habillement et de chaussures"]
["G","COMMERCE",{"$f":"LEFT(Tableau1[[#This Row],[Code2]],2)","v":"46"},"Commerce de gros",{"$f":"LEFT(Tableau1[[#This Row],[Code3UID]],4)","v":"46.4"},"Commerce de gros de biens domestiques","46.43G","Commerce de gros d’appareils de génie climatique"]
["G","COMMERCE",{"$f":"LEFT(Tableau1[[#This Row],[Code2]],2)","v":"46"},"Commerce de gros",{"$f":"LEFT(Tableau1[[#This Row],[Code3UID]],4)","v":"46.4"},"Commerce de gros de biens domestiques","46.43H","Commerce de gros d’autres appareils électroménagers"]
["G","COMMERCE",{"$f":"LEFT(Tableau1[[#This Row],[Code2]],2)","v":"46"},"Commerce de gros",{"$f":"LEFT(Tableau1[[#This Row],[Code3UID]],4)","v":"46.4"},"Commerce de gros de biens domestiques","46.44Y","Commerce de gros de vaisselle, verrerie et produits d’entretien"]
["G","COMMERCE",{"$f":"LEFT(Tableau1[[#This Row],[Code2]],2)","v":"46"},"Commerce de gros",{"$f":"LEFT(Tableau1[[#This Row],[Code3UID]],4)","v":"46.4"},"Commerce de gros de biens domestiques","46.45Y","Commerce de gros de parfumerie et de produits de beauté"]
["G","COMMERCE",{"$f":"LEFT(Tableau1[[#This Row],[Code2]],2)","v":"46"},"Commerce de gros",{"$f":"LEFT(Tableau1[[#This Row],[Code3UID]],4)","v":"46.4"},"Commerce de gros de biens domestiques","46.46Y","Commerce de gros de produits pharmaceutiques et médicaux"]
["G","COMMERCE",{"$f":"LEFT(Tableau1[[#This Row],[Code2]],2)","v":"46"},"Commerce de gros",{"$f":"LEFT(Tableau1[[#This Row],[Code3UID]],4)","v":"46.4"},"Commerce de gros de biens domestiques","46.47Y","Commerce de gros de meubles à usage domestique, de bureau et de magasin, de tapis et d’appareils d’éclairage"]
["G","COMMERCE",{"$f":"LEFT(Tableau1[[#This Row],[Code2]],2)","v":"46"},"Commerce de gros",{"$f":"LEFT(Tableau1[[#This Row],[Code3UID]],4)","v":"46.4"},"Commerce de gros de biens domestiques","46.48Y","Commerce de gros d’articles d’horlogerie et de bijouterie"]
["G","COMMERCE",{"$f":"LEFT(Tableau1[[#This Row],[Code2]],2)","v":"46"},"Commerce de gros",{"$f":"LEFT(Tableau1[[#This Row],[Code3UID]],4)","v":"46.4"},"Commerce de gros de biens domestiques","46.49Y","Commerce de gros d’autres biens domestiques"]
["G","COMMERCE",{"$f":"LEFT(Tableau1[[#This Row],[Code2]],2)","v":"46"},"Commerce de gros",{"$f":"LEFT(Tableau1[[#This Row],[Code3UID]],4)","v":"46.5"},"Commerce de gros d’équipements de l’information et de la communication","46.50Y","Commerce de gros d’équipements de l’information et de la communication"]
["G","COMMERCE",{"$f":"LEFT(Tableau1[[#This Row],[Code2]],2)","v":"46"},"Commerce de gros",{"$f":"LEFT(Tableau1[[#This Row],[Code3UID]],4)","v":"46.6"},"Commerce de gros d’autres machines, équipements et fournitures","46.61Y","Commerce de gros de matériel agricole"]
["G","COMMERCE",{"$f":"LEFT(Tableau1[[#This Row],[Code2]],2)","v":"46"},"Commerce de gros",{"$f":"LEFT(Tableau1[[#This Row],[Code3UID]],4)","v":"46.6"},"Commerce de gros d’autres machines, équipements et fournitures","46.62Y","Commerce de gros de machines-outils"]
["G","COMMERCE",{"$f":"LEFT(Tableau1[[#This Row],[Code2]],2)","v":"46"},"Commerce de gros",{"$f":"LEFT(Tableau1[[#This Row],[Code3UID]],4)","v":"46.6"},"Commerce de gros d’autres machines, équipements et fournitures","46.63Y","Commerce de gros de machines pour l’extraction, la construction et le génie civil"]
["G","COMMERCE",{"$f":"LEFT(Tableau1[[#This Row],[Code2]],2)","v":"46"},"Commerce de gros",{"$f":"LEFT(Tableau1[[#This Row],[Code3UID]],4)","v":"46.6"},"Commerce de gros d’autres machines, équipements et fournitures","46.64G","Commerce de gros d’autre matériel électrique"]
["G","COMMERCE",{"$f":"LEFT(Tableau1[[#This Row],[Code2]],2)","v":"46"},"Commerce de gros",{"$f":"LEFT(Tableau1[[#This Row],[Code3UID]],4)","v":"46.6"},"Commerce de gros d’autres machines, équipements et fournitures","46.64H","Commerce de gros de matériels de manutention et de levage"]
["G","COMMERCE",{"$f":"LEFT(Tableau1[[#This Row],[Code2]],2)","v":"46"},"Commerce de gros",{"$f":"LEFT(Tableau1[[#This Row],[Code3UID]],4)","v":"46.6"},"Commerce de gros d’autres machines, équipements et fournitures","46.64J","Commerce de gros d’autres machines et équipements pour l’industrie et le transport"]
["G","COMMERCE",{"$f":"LEFT(Tableau1[[#This Row],[Code2]],2)","v":"46"},"Commerce de gros",{"$f":"LEFT(Tableau1[[#This Row],[Code3UID]],4)","v":"46.6"},"Commerce de gros d’autres machines, équipements et fournitures","46.64K","Commerce de gros d’autres machines et équipements pour le commerce et les services"]
["G","COMMERCE",{"$f":"LEFT(Tableau1[[#This Row],[Code2]],2)","v":"46"},"Commerce de gros",{"$f":"LEFT(Tableau1[[#This Row],[Code3UID]],4)","v":"46.7"},"Commerce de gros de véhicules automobiles, de motocycles et de leurs pièces et accessoires","46.71G","Commerce de gros de véhicules automobiles légers (moins de 3,5 tonnes)"]
["G","COMMERCE",{"$f":"LEFT(Tableau1[[#This Row],[Code2]],2)","v":"46"},"Commerce de gros",{"$f":"LEFT(Tableau1[[#This Row],[Code3UID]],4)","v":"46.7"},"Commerce de gros de véhicules automobiles, de motocycles et de leurs pièces et accessoires","46.71H","Commerce de gros d’autres véhicules automobiles"]
["G","COMMERCE",{"$f":"LEFT(Tableau1[[#This Row],[Code2]],2)","v":"46"},"Commerce de gros",{"$f":"LEFT(Tableau1[[#This Row],[Code3UID]],4)","v":"46.7"},"Commerce de gros de véhicules automobiles, de motocycles et de leurs pièces et accessoires","46.72Y","Commerce de gros de pièces et accessoires de véhicules automobiles"]
["G","COMMERCE",{"$f":"LEFT(Tableau1[[#This Row],[Code2]],2)","v":"46"},"Commerce de gros",{"$f":"LEFT(Tableau1[[#This Row],[Code3UID]],4)","v":"46.7"},"Commerce de gros de véhicules automobiles, de motocycles et de leurs pièces et accessoires","46.73Y","Commerce de gros de motocycles et de pièces et accessoires pour motocycles"]
["G","COMMERCE",{"$f":"LEFT(Tableau1[[#This Row],[Code2]],2)","v":"46"},"Commerce de gros",{"$f":"LEFT(Tableau1[[#This Row],[Code3UID]],4)","v":"46.8"},"Autre commerce de gros spécialisé","46.81Y","Commerce de gros de combustibles solides, liquides et gazeux et de produits annexes"]
["G","COMMERCE",{"$f":"LEFT(Tableau1[[#This Row],[Code2]],2)","v":"46"},"Commerce de gros",{"$f":"LEFT(Tableau1[[#This Row],[Code3UID]],4)","v":"46.8"},"Autre commerce de gros spécialisé","46.82Y","Commerce de gros de minerais et de métaux"]
["G","COMMERCE",{"$f":"LEFT(Tableau1[[#This Row],[Code2]],2)","v":"46"},"Commerce de gros",{"$f":"LEFT(Tableau1[[#This Row],[Code3UID]],4)","v":"46.8"},"Autre commerce de gros spécialisé","46.83G","Commerce de gros de bois et matériaux de construction"]
["G","COMMERCE",{"$f":"LEFT(Tableau1[[#This Row],[Code2]],2)","v":"46"},"Commerce de gros",{"$f":"LEFT(Tableau1[[#This Row],[Code3UID]],4)","v":"46.8"},"Autre commerce de gros spécialisé","46.83H","Commerce de gros d’appareils sanitaires"]
["G","COMMERCE",{"$f":"LEFT(Tableau1[[#This Row],[Code2]],2)","v":"46"},"Commerce de gros",{"$f":"LEFT(Tableau1[[#This Row],[Code3UID]],4)","v":"46.8"},"Autre commerce de gros spécialisé","46.83J","Commerce de gros de matériaux de décoration"]
["G","COMMERCE",{"$f":"LEFT(Tableau1[[#This Row],[Code2]],2)","v":"46"},"Commerce de gros",{"$f":"LEFT(Tableau1[[#This Row],[Code3UID]],4)","v":"46.8"},"Autre commerce de gros spécialisé","46.84G","Commerce de gros de quincaillerie et de matériel de bricolage"]
["G","COMMERCE",{"$f":"LEFT(Tableau1[[#This Row],[Code2]],2)","v":"46"},"Commerce de gros",{"$f":"LEFT(Tableau1[[#This Row],[Code3UID]],4)","v":"46.8"},"Autre commerce de gros spécialisé","46.84H","Commerce de gros de fournitures pour plomberie et chauffage"]
["G","COMMERCE",{"$f":"LEFT(Tableau1[[#This Row],[Code2]],2)","v":"46"},"Commerce de gros",{"$f":"LEFT(Tableau1[[#This Row],[Code3UID]],4)","v":"46.8"},"Autre commerce de gros spécialisé","46.85Y","Commerce de gros de produits chimiques"]
["G","COMMERCE",{"$f":"LEFT(Tableau1[[#This Row],[Code2]],2)","v":"46"},"Commerce de gros",{"$f":"LEFT(Tableau1[[#This Row],[Code3UID]],4)","v":"46.8"},"Autre commerce de gros spécialisé","46.86Y","Commerce de gros d’autres produits intermédiaires"]
["G","COMMERCE",{"$f":"LEFT(Tableau1[[#This Row],[Code2]],2)","v":"46"},"Commerce de gros",{"$f":"LEFT(Tableau1[[#This Row],[Code3UID]],4)","v":"46.8"},"Autre commerce de gros spécialisé","46.87Y","Commerce de gros de déchets et débris"]
["G","COMMERCE",{"$f":"LEFT(Tableau1[[#This Row],[Code2]],2)","v":"46"},"Commerce de gros",{"$f":"LEFT(Tableau1[[#This Row],[Code3UID]],4)","v":"46.8"},"Autre commerce de gros spécialisé","46.89Y","Autre commerce de gros spécialisé n.c.a."]
["G","COMMERCE",{"$f":"LEFT(Tableau1[[#This Row],[Code2]],2)","v":"46"},"Commerce de gros",{"$f":"LEFT(Tableau1[[#This Row],[Code3UID]],4)","v":"46.9"},"Commerce de gros non spécialisé","46.90Y","Commerce de gros non spécialisé"]
["G","COMMERCE",{"$f":"LEFT(Tableau1[[#This Row],[Code2]],2)","v":"47"},"Commerce de détail",{"$f":"LEFT(Tableau1[[#This Row],[Code3UID]],4)","v":"47.1"},"Commerce de détail non spécialisé","47.11G","Commerce de détail non spécialisé à prédominance alimentaire en magasin de moins de 120 m²"]
["G","COMMERCE",{"$f":"LEFT(Tableau1[[#This Row],[Code2]],2)","v":"47"},"Commerce de détail",{"$f":"LEFT(Tableau1[[#This Row],[Code3UID]],4)","v":"47.1"},"Commerce de détail non spécialisé","47.11H","Commerce de détail non spécialisé à prédominance alimentaire en magasin de 120 à 400 m² (supérette)"]
["G","COMMERCE",{"$f":"LEFT(Tableau1[[#This Row],[Code2]],2)","v":"47"},"Commerce de détail",{"$f":"LEFT(Tableau1[[#This Row],[Code3UID]],4)","v":"47.1"},"Commerce de détail non spécialisé","47.11J","Commerce de détail non spécialisé à prédominance alimentaire en magasin de 400 à 2500 m² (supermarché)"]
["G","COMMERCE",{"$f":"LEFT(Tableau1[[#This Row],[Code2]],2)","v":"47"},"Commerce de détail",{"$f":"LEFT(Tableau1[[#This Row],[Code3UID]],4)","v":"47.1"},"Commerce de détail non spécialisé","47.11K","Commerce de détail non spécialisé à prédominance alimentaire en magasin de plus de 2500 m² (hypermarché)"]
["G","COMMERCE",{"$f":"LEFT(Tableau1[[#This Row],[Code2]],2)","v":"47"},"Commerce de détail",{"$f":"LEFT(Tableau1[[#This Row],[Code3UID]],4)","v":"47.1"},"Commerce de détail non spécialisé","47.11L","Commerce de détail non spécialisé à prédominance alimentaire hors magasin"]
["G","COMMERCE",{"$f":"LEFT(Tableau1[[#This Row],[Code2]],2)","v":"47"},"Commerce de détail",{"$f":"LEFT(Tableau1[[#This Row],[Code3UID]],4)","v":"47.1"},"Commerce de détail non spécialisé","47.12G","Autre commerce de détail non spécialisé en magasin de plus de 2500 m² (grand magasin)"]
["G","COMMERCE",{"$f":"LEFT(Tableau1[[#This Row],[Code2]],2)","v":"47"},"Commerce de détail",{"$f":"LEFT(Tableau1[[#This Row],[Code3UID]],4)","v":"47.1"},"Commerce de détail non spécialisé","47.12H","Autre commerce de détail non spécialisé en magasin de moins de 2500 m² ou hors magasin"]
["G","COMMERCE",{"$f":"LEFT(Tableau1[[#This Row],[Code2]],2)","v":"47"},"Commerce de détail",{"$f":"LEFT(Tableau1[[#This Row],[Code3UID]],4)","v":"47.2"},"Commerce de détail de produits alimentaires, de boissons et de tabac","47.21Y","Commerce de détail de fruits et légumes"]
["G","COMMERCE",{"$f":"LEFT(Tableau1[[#This Row],[Code2]],2)","v":"47"},"Commerce de détail",{"$f":"LEFT(Tableau1[[#This Row],[Code3UID]],4)","v":"47.2"},"Commerce de détail de produits alimentaires, de boissons et de tabac","47.22Y","Commerce de détail de viande et de produits à base de viande"]
["G","COMMERCE",{"$f":"LEFT(Tableau1[[#This Row],[Code2]],2)","v":"47"},"Commerce de détail",{"$f":"LEFT(Tableau1[[#This Row],[Code3UID]],4)","v":"47.2"},"Commerce de détail de produits alimentaires, de boissons et de tabac","47.23Y","Commerce de détail de poisson, de crustacés et de mollusques"]
["G","COMMERCE",{"$f":"LEFT(Tableau1[[#This Row],[Code2]],2)","v":"47"},"Commerce de détail",{"$f":"LEFT(Tableau1[[#This Row],[Code3UID]],4)","v":"47.2"},"Commerce de détail de produits alimentaires, de boissons et de tabac","47.24Y","Commerce de détail de pain, de pâtisserie et de confiserie"]
["G","COMMERCE",{"$f":"LEFT(Tableau1[[#This Row],[Code2]],2)","v":"47"},"Commerce de détail",{"$f":"LEFT(Tableau1[[#This Row],[Code3UID]],4)","v":"47.2"},"Commerce de détail de produits alimentaires, de boissons et de tabac","47.25Y","Commerce de détail de boissons"]
["G","COMMERCE",{"$f":"LEFT(Tableau1[[#This Row],[Code2]],2)","v":"47"},"Commerce de détail",{"$f":"LEFT(Tableau1[[#This Row],[Code3UID]],4)","v":"47.2"},"Commerce de détail de produits alimentaires, de boissons et de tabac","47.26Y","Commerce de détail de produits à base de tabac"]
["G","COMMERCE",{"$f":"LEFT(Tableau1[[#This Row],[Code2]],2)","v":"47"},"Commerce de détail",{"$f":"LEFT(Tableau1[[#This Row],[Code3UID]],4)","v":"47.2"},"Commerce de détail de produits alimentaires, de boissons et de tabac","47.27G","Commerce de détail de produits laitiers et d'oeufs"]
["G","COMMERCE",{"$f":"LEFT(Tableau1[[#This Row],[Code2]],2)","v":"47"},"Commerce de détail",{"$f":"LEFT(Tableau1[[#This Row],[Code3UID]],4)","v":"47.2"},"Commerce de détail de produits alimentaires, de boissons et de tabac","47.27H","Commerce de détail spécialisé d’autres produits d’épicerie et d’autres produits alimentaires n.c.a."]
["G","COMMERCE",{"$f":"LEFT(Tableau1[[#This Row],[Code2]],2)","v":"47"},"Commerce de détail",{"$f":"LEFT(Tableau1[[#This Row],[Code3UID]],4)","v":"47.3"},"Commerce de détail de carburants","47.30Y","Commerce de détail de carburants"]
["G","COMMERCE",{"$f":"LEFT(Tableau1[[#This Row],[Code2]],2)","v":"47"},"Commerce de détail",{"$f":"LEFT(Tableau1[[#This Row],[Code3UID]],4)","v":"47.4"},"Commerce de détail d’équipements de l’information et de la communication","47.40Y","Commerce de détail d’équipements de l’information et de la communication"]
["G","COMMERCE",{"$f":"LEFT(Tableau1[[#This Row],[Code2]],2)","v":"47"},"Commerce de détail",{"$f":"LEFT(Tableau1[[#This Row],[Code3UID]],4)","v":"47.5"},"Commerce de détail d’autres équipements du foyer","47.51Y","Commerce de détail de textiles"]
["G","COMMERCE",{"$f":"LEFT(Tableau1[[#This Row],[Code2]],2)","v":"47"},"Commerce de détail",{"$f":"LEFT(Tableau1[[#This Row],[Code3UID]],4)","v":"47.5"},"Commerce de détail d’autres équipements du foyer","47.52G","Commerce de détail de quincaillerie, de matériaux de construction et de bricolage, de peinture et de verreen magasin de moins de 400 m²"]
["G","COMMERCE",{"$f":"LEFT(Tableau1[[#This Row],[Code2]],2)","v":"47"},"Commerce de détail",{"$f":"LEFT(Tableau1[[#This Row],[Code3UID]],4)","v":"47.5"},"Commerce de détail d’autres équipements du foyer","47.52H","Commerce de détail de quincaillerie, de matériaux de construction et de bricolage, de peinture et de verreen magasin de plus de 400 m² ou hors magasin"]
["G","COMMERCE",{"$f":"LEFT(Tableau1[[#This Row],[Code2]],2)","v":"47"},"Commerce de détail",{"$f":"LEFT(Tableau1[[#This Row],[Code3UID]],4)","v":"47.5"},"Commerce de détail d’autres équipements du foyer","47.53Y","Commerce de détail de tapis, moquettes et revêtements de murs et de sols"]
["G","COMMERCE",{"$f":"LEFT(Tableau1[[#This Row],[Code2]],2)","v":"47"},"Commerce de détail",{"$f":"LEFT(Tableau1[[#This Row],[Code3UID]],4)","v":"47.5"},"Commerce de détail d’autres équipements du foyer","47.54Y","Commerce de détail d’appareils électroménagers"]
["G","COMMERCE",{"$f":"LEFT(Tableau1[[#This Row],[Code2]],2)","v":"47"},"Commerce de détail",{"$f":"LEFT(Tableau1[[#This Row],[Code3UID]],4)","v":"47.6"},"Commerce de détail de biens culturels et de loisirs","47.61Y","Commerce de détail de livres"]
["G","COMMERCE",{"$f":"LEFT(Tableau1[[#This Row],[Code2]],2)","v":"47"},"Commerce de détail",{"$f":"LEFT(Tableau1[[#This Row],[Code3UID]],4)","v":"47.6"},"Commerce de détail de biens culturels et de loisirs","47.62Y","Commerce de détail de journaux et autres publications périodiques et de papeterie"]
["G","COMMERCE",{"$f":"LEFT(Tableau1[[#This Row],[Code2]],2)","v":"47"},"Commerce de détail",{"$f":"LEFT(Tableau1[[#This Row],[Code3UID]],4)","v":"47.6"},"Commerce de détail de biens culturels et de loisirs","47.63Y","Commerce de détail d’articles de sport"]
["G","COMMERCE",{"$f":"LEFT(Tableau1[[#This Row],[Code2]],2)","v":"47"},"Commerce de détail",{"$f":"LEFT(Tableau1[[#This Row],[Code3UID]],4)","v":"47.6"},"Commerce de détail de biens culturels et de loisirs","47.64Y","Commerce de détail de jeux et jouets"]
["G","COMMERCE",{"$f":"LEFT(Tableau1[[#This Row],[Code2]],2)","v":"47"},"Commerce de détail",{"$f":"LEFT(Tableau1[[#This Row],[Code3UID]],4)","v":"47.6"},"Commerce de détail de biens culturels et de loisirs","47.69Y","Commerce de détail de biens culturels et de loisirs n.c.a."]